{"text_format":"1","workbook":"xlsx","n_sheets":2,"sheets":["Instructions","NCA Data"],"not_rendered":{"charts":0,"images":0,"macros":1,"external_links":0,"defined_names":2,"comments":0,"pivot_tables":0},"unopened":[],"bounds":{"document_bytes":16777216,"sheet_cells":100000,"rows_first":2000,"rows_last":500,"rows_between":2000,"halvings":0,"cell_chars":16384,"cell_head_chars":4096},"cells_cut":0,"cells_raw":0,"read":"whole","date_system":"1900"}

{"sheet":"Instructions","index":0,"n_rows":56,"n_cols":2,"rows_kept":56,"cut":false,"hidden":false,"merged":[]}
["Notes on the use and interpretation of this information"]
[]
["General"]
["The overall summary in terms of priorities for NELMs for each area is presented in"]
["the first table (Rows 5 – 38) and should be used with the accompanying map, which "]
["shows the location of these top priorities.  All top priorities are listed within this "]
["table."]
[]
["The following rows provide further technical detail  – broken down to Priority "]
["Habitats, Section 41 Species and water quality. This technical information will be "]
["discussed as part of local validation meetings and workshops throughout July, "]
["when experienced staff will be on hand to explain this in more detail.  To view the full "]
["detail please click on the + symbols that appear at  the left hand side of the "]
["spreadsheet (row 41 and below): these will expand to show the full listings."]
[]
[]
["NELMS targeting – summary of prioritisation"]
["Biodiversity"]
["o   (priority habitat in) Designated Sites"]
["o   Non-designated Priority Habitat that is:-"]
["§  Not small (above defined habitat threshold area); and/ or,"]
["§  Part of a network (i.e. connected); and/ or,"]
["§  Has synergy with WFD/ FRM"]
["o   (most s.41 species’ requirements will be met through Priority Habitat "]
[null,"          by applying ‘mosaic’ or ‘bespoke’ land management)"]
["o   Plus, where s.41 species requirements cannot be met by PH, wider"]
[null,"         countryside Farm Wildlife Package e.g. farmland birds and pollinators"]
[]
["N.B. These are the top priorities and have equal ranking in weighting the "]
["            relevant datasets.  Ref annex to NELMS national targeting framework paper "]
["            for more detail.  We took our cue from Biodiversity 2020 and followed the ‘Lawton "]
["            principles’."]
[]
["Water Quality"]
["The water quality priorities are linked to specific water quality (Water Framework "]
["Directive) objectives in each NCA.  Each NCA lists both the size in hectares and "]
["percentage of the NCA covered by a specific objective.   It should be noted that the "]
["areas used can both be the area in which there is a specific WFD objective failure "]
["as well as the area of land draining to that failure.  For example, if a Natura 2000 "]
["designated river fails to meet its objective, it will both be the land in the direct "]
["catchment of the failure as well as land upstream contributing to the failure. "]
[" In many locations the area where NELMS options would be targeted will overlap, "]
["this helps to identify the top priorities,  and so the area for each individual objective "]
["cannot be added together.  Each line records, where possible, the relevant name of "]
["the catchment, the designation of the protected area (e.g. Natura 2000) and the "]
["reason for failure of the objective (e.g. phosphate).  For good ecological status"]
[" failures this is recorded simply as rivers or lakes along with the failure type. "]
[]
["Forestry"]
["The Government’s top priorities for forestry are to protect and improve the woods "]
["we already have, and to expand the woodland resource where new woodland can add "]
["greatest value. NELMS targeting reflects that approach by prioritising those woods "]
["not currently in active management, and focussing creation where new woods can"]
[" improve habitat connectivity and benefit the water environment. This approach to "]
["creation and management is designed to help deliver the Government’s biodiversity "]
["objectives while at the same time improve water quality and reduce flood risk."]

{"sheet":"NCA Data","index":1,"n_rows":1442,"n_cols":6,"rows_kept":1442,"cut":false,"hidden":false,"merged":[[441,1,441,3],[564,1,564,3],[568,1,568,3],[0,4,0,5],[1,4,1,5],[2,4,2,5]]}
[null,null,null,null,"National Character Area"]
[null,null,null,null,"Arden (97)"]
[null,null,null,"NCA Area (ha)",143425.03298799999]
[null,null,null,"High Priority Features","Area (ha)","% of NCA"]
[null,"Legend",null,"Natura 2000 Area ",3.88,{"$f":"SUM(E5/E$3)*100","v":2.7052460223764632E-3}]
[null,"High Priority Biodiversity Features",null,"Sites of Special Scientific Interest Area ",1116.07,{"$f":"SUM(E6/E$3)*100","v":0.77815565159631417}]
[null,"High Priority Water Quality Features",null,"High Biodiversity Priority Habitat Area ",921.19,0.64227978952396247]
[null,"High Priority Historic Environment Features",null,"*Total Priority Habitat Area  - Non Woodland",6346.17,4.424729677789907]
[null,"High Priority Landscape Features",null,"Farm Wildlife Package Priority Area ",11197.7,7.8073539651455981]
[null,"High Priority Climate Change Features",null,"**Section 41 Species Area ",727.03,0.50690593186813404]
[null,"High Priority Forestry Features",null,"Water Quality Priority areas ",3461.5811908800001,2.4135125638560053]
[null,null,null,"Catchment Sensitive Farming Target Area ",null,0]
[null,null,null,"High Priority Scheduled Monuments",350.62,0.24446220627980297]
[null,null,null,"High Priority Registered Parks and Gardens",2663.62,1.8571513943614422]
[null,null,null,"High Priority Registered Battlefields",null,0]
[null,null,null,"Selected Heritage Inventory for NE (SHINE) High Signifance Features ",510.85,0.35617910580696299]
[null,null,null,"High Risk National Park ",null,0]
[null,null,null,"High Risk Areas of Outstanding Natural Beauty ",null,0]
[null,null,null,"High Risk Heritage Coast ",null,0]
[null,null,null,"High Risk Environmentally Sensitive Area ",null,0]
[null,null,null,"High Risk Landscape Priority Parks and Gardens ",null,0]
[null,null,null,"High Risk Inheritance Tax Exempt Land ",null,0]
[null,null,null,"High Risk Countryside Stewardship Special Projects ",null,0]
[null,null,null,"High Risk Landscape Priority Traditional Orchards ",null,0]
[null,null,null,"High Risk Nature Improvement Areas ",null,0]
[null,null,null,"High Risk Heritage Lottery Fund Project Areas ",null,0]
[null,null,null,"High Risk World Heritage Sites ",null,0]
[null,null,null,"Refugia Priority areas",null,0]
[null,null,null,"Bio2020 Objective 1D Target Area for Resoration",13302.6,9.2749499322848301]
[null,null,null,"Carbon Storage Area",null,0]
[null,null,null,"Carbon Sequestration Area",null,0]
[null,null,null,"Woodland Management Priorities",8151.19,5.683240805447114]
[]
[null,null,null,"High Priority Opportunity Areas"]
[null,null,null,"Potential Habitat Creation Area (1KM zone)",124634,86.898358956924767]
[null,null,null,"Potential Habitat Creation Area (2KM zone)",143377,99.966510038729425]
[null,null,null,"Woodland Creation Opportunity Areas",17663.214730513955,{"$f":"SUM(E37/E$3)*100","v":12.315294173222739}]
[null,null,null,"Flood Risk Opportunities",13688.4,9.5439406321386553]
[]
[]
[null,null,null,"*Priority Habitat breakdown by Habitat - Non Woodland"]
[null,null,null,"Blanket Bog",null,0]
[null,null,null,"Coastal and Floodplain Grazing Marsh",409.06,0.28520823142095775]
[null,null,null,"Coastal Sand Dunes",null,0]
[null,null,null,"Coastal Vegetated Shingle",null,0]
[null,null,null,"Lowland Calcareous Grassland",null,0]
[null,null,null,"Lowland Dry Acid Grassland",23.81,1.6601007163088554E-2]
[null,null,null,"Lowland Fens",44.94,3.133344233133975E-2]
[null,null,null,"Lowland Heathland",5.61,3.9114510787453503E-3]
[null,null,null,"Lowland Meadows",340.19,0.2371901145237755]
[null,null,null,"Limestone Pavements",null,0]
[null,null,null,"Lowland Raised Bog",null,0]
[null,null,null,"Maritime Cliffs and Slope",null,0]
[null,null,null,"Mountain Heath and Willow Scrub",null,0]
[null,null,null,"Mudflats",null,0]
[null,null,null,"Purple Moor Grass and Rush Pastures",5.45,3.7998945417401352E-3]
[null,null,null,"Reedbeds",25.74,1.7946657890713959E-2]
[null,null,null,"Saltmarsh",null,0]
[null,null,null,"Saline Lagoons",null,0]
[null,null,null,"Traditional Orchards",101.18,7.0545565088672824E-2]
[null,null,null,"Upland Calcareous Grassland",null,0]
[null,null,null,"Upland Flushes, Fens and Swamps",null,0]
[null,null,null,"Upland Heathland",null,0]
[null,null,null,"Upland Hay Meadows",null,0]
[null,null,null,"Other Habitats Included within Priority Habitat Inventory",null,0]
[null,null,null,"Fragmented Heath",null,0]
[null,null,null,"Grass Moorland",null,0]
[null,null,null,"Good Quality Semi-Improved Grassland",468.93,0.32695129311159665]
[null,null,null,"No Main Habitat type - Secondary Type Present",4921.25,3.4312350483557137]
[]
[null,null,null,"**Section 41 Species Breakdown by Taxon Name"]
[null,null,null,"Adonis annua",null,{"$f":"SUM(E72/E$3)*100","v":0}]
[null,null,null,"Aeshna isosceles",null,0]
[null,null,null,"Agabus brunneus",null,0]
[null,null,null,"Agonum scitulum",null,0]
[null,null,null,"Agroeca cuprea",null,0]
[null,null,null,"Ajuga chamaepitys",null,0]
[null,null,null,"Ajuga pyramidalis",null,0]
[null,null,null,"Alchemilla acutiloba",null,0]
[null,null,null,"Alchemilla micans",null,0]
[null,null,null,"Alchemilla minima",null,0]
[null,null,null,"Alchemilla monticola",null,0]
[null,null,null,"Alchemilla subcrenata",null,0]
[null,null,null,"Alisma gramineum",null,0]
[null,null,null,"Alopecosa fabrilis",null,0]
[null,null,null,"Altella lucida",null,0]
[null,null,null,"Amara famelica",null,0]
[null,null,null,"Amara fusca",null,0]
[null,null,null,"Amiota variegata",null,0]
[null,null,null,"Ampedus rufipennis",null,0]
[null,null,null,"Andrena ferox",null,0]
[null,null,null,"Andrena tarsata",null,0]
[null,null,null,"Anergates atratulus",null,0]
[null,null,null,"Anisodactylus nemori",null,0]
[null,null,null,"Anisodactylus poecil",null,0]
[null,null,null,"Anisus vorticulus",null,0]
[null,null,null,"Anostirus castaneus",null,0]
[null,null,null,"Anthophora retusa",null,0]
[null,null,null,"Apium repens",null,0]
[null,null,null,"Arctosa fulvolineata",null,0]
[null,null,null,"Armeria maritima subsp. elongata",null,0]
[null,null,null,"Artemisia campestris",null,0]
[null,null,null,"Asindulum nigrum",null,0]
[null,null,null,"Asparagus prostratus",null,0]
[null,null,null,"Aspitates gilvaria s",null,0]
[null,null,null,"Astragalus danicus",null,0]
[null,null,null,"Atriplex pedunculata",null,0]
[null,null,null,"Bagous nodulosus",null,0]
[null,null,null,"Baryphyma duffeyi",null,0]
[null,null,null,"Baryphyma duffeyi*",null,0]
[null,null,null,"Bembidion humerale",null,0]
[null,null,null,"Bembidion quadripust",null,0]
[null,null,null,"Bembidion testaceum",null,0]
[null,null,null,"Bidessus unistriatus",null,0]
[null,null,null,"Blysmus compressus",null,0]
[null,null,null,"Bombus humilis",null,0]
[null,null,null,"Bombus ruderarius",null,0]
[null,null,null,"Bombylius minor",null,0]
[null,null,null,"Bombylius minor*",null,0]
[null,null,null,"Brachinus sclopeta",null,0]
[null,null,null,"Bracteon argenteolum",null,0]
[null,null,null,"Bromus interruptus",null,0]
[null,null,null,"Bupleurum rotundifolium",null,0]
[null,null,null,"Bupleurum tenuissimum",null,0]
[null,null,null,"Byctiscus populi",0.99802600000099995,6.95852027507989E-4]
[null,null,null,"Calamagrostis stricta",null,0]
[null,null,null,"Callicera spinolae",null,0]
[null,null,null,"Calosoma inquisitor",null,0]
[null,null,null,"Campanula patula",1,6.9722835628259364E-4]
[null,null,null,"Campanula rapunculus",null,0]
[null,null,null,"Campsicnemus magius",null,0]
[null,null,null,"Carabus intricatus",null,0]
[null,null,null,"Carabus monilis",null,0]
[null,null,null,"Carex depauperata",null,{"$f":"SUM(E134/E$3)*100","v":0}]
[null,null,null,"Carex divisa",null,0]
[null,null,null,"Carex ericetorum",null,0]
[null,null,null,"Carex maritima",null,0]
[null,null,null,"Carex vulpina",null,0]
[null,null,null,"Carum carvi",null,0]
[null,null,null,"Centaurea calcitrapa",null,0]
[null,null,null,"Centaurea cyanus",4,2.7889134251303745E-3]
[null,null,null,"Centromerus serratus",null,0]
[null,null,null,"Cephalanthera damasonium",null,0]
[null,null,null,"Cephalanthera longifolia",102,7.1117292340824548E-2]
[null,null,null,"Cephalanthera rubra",null,0]
[null,null,null,"Chamaemelum nobile",null,0]
[null,null,null,"Chenopodium urbicum",1,6.9722835628259364E-4]
[null,null,null,"Chenopodium vulvaria",null,0]
[null,null,null,"Chlorita viridula",null,0]
[null,null,null,"Chrysis fulgida",null,0]
[null,null,null,"Chrysolina graminis",null,0]
[null,null,null,"Chrysotoxum octomacu",null,0]
[null,null,null,"Cicendia filiformis",null,0]
[null,null,null,"Cicindela hybrida",null,0]
[null,null,null,"Cicindela sylvatica",null,0]
[null,null,null,"Clinopodium acinos",null,0]
[null,null,null,"Clinopodium menthifolium",null,0]
[null,null,null,"Cliorismia rustica",null,0]
[null,null,null,"Clubiona rosserae",null,0]
[null,null,null,"Coeloglossum viride",null,0]
[null,null,null,"Coenagrion mercurial",null,0]
[null,null,null,"Coincya wrightii",null,0]
[null,null,null,"Colletes floralis",null,0]
[null,null,null,"Colletes halophilus",null,0]
[null,null,null,"Corrigiola litoralis",null,0]
[null,null,null,"Crepis foetida",null,0]
[null,null,null,"Crepis mollis",null,0]
[null,null,null,"Cryptocephalus coryl",null,0]
[null,null,null,"Cryptocephalus decem",null,0]
[null,null,null,"Cryptocephalus nitid",null,0]
[null,null,null,"Cryptocephalus prima",null,0]
[null,null,null,"Cryptocephalus punct",null,0]
[null,null,null,"Cryptocephalus sexpu",null,0]
[null,null,null,"Curimopsis nigrita",null,0]
[null,null,null,"Cylindera germanica",null,0]
[null,null,null,"Cynoglossum germanicum",null,0]
[null,null,null,"Cyperus fuscus",null,0]
[null,null,null,"Cypripedium calceolus",null,0]
[null,null,null,"Dactylorhiza incarnata subsp. ochroleuca",null,0]
[null,null,null,"Dactylorhiza viridis",null,0]
[null,null,null,"Damasonium alisma",null,0]
[null,null,null,"Decticus verrucivoru",null,0]
[null,null,null,"Dianthus armeria",100,6.9722835628259358E-2]
[null,null,null,"Dictyna pusilla",null,0]
[null,null,null,"Dipoena inornata",null,0]
[null,null,null,"Dolichopus laticola",null,0]
[null,null,null,"Dolichopus nigripes",null,0]
[null,null,null,"Dolomedes plantarius",null,0]
[null,null,null,"Donacia aquatica",null,0]
[null,null,null,"Donacia bicolora",null,0]
[null,null,null,"Doratura impudica",null,0]
[null,null,null,"Doratura impudica*",null,0]
[null,null,null,"Doros profuges",null,0]
[null,null,null,"Dorycera graminum",null,0]
[null,null,null,"Dorylomorpha clavife",null,0]
[null,null,null,"Dryopteris cristata",null,0]
[null,null,null,"Empis limata",null,0]
[null,null,null,"Epipactis sancta",null,{"$f":"SUM(E198/E$3)*100","v":0}]
[null,null,null,"Eresus sandaliatus",null,0]
[null,null,null,"Erigone welchi",null,0]
[null,null,null,"Eristalis cryptarum",null,0]
[null,null,null,"Eryngium campestre",null,0]
[null,null,null,"Eucera longicornis",null,0]
[null,null,null,"Euphrasia anglica",null,0]
[null,null,null,"Euphrasia officinalis subsp. anglica",null,0]
[null,null,null,"Euphrasia officinalis subsp. monticola",null,0]
[null,null,null,"Euphrasia ostenfeldii",null,0]
[null,null,null,"Euphrasia pseudokerneri",null,0]
[null,null,null,"Euphrasia rivularis",null,0]
[null,null,null,"Euphrasia rostkoviana subsp. montana",null,0]
[null,null,null,"Euphrasia vigursii",null,0]
[null,null,null,"Euphydryas aurinia",null,0]
[null,null,null,"Eurysa douglasi",null,0]
[null,null,null,"Euscelis venosus",null,0]
[null,null,null,"Exapion genistae",null,0]
[null,null,null,"Fallopia dumetorum",null,0]
[null,null,null,"Filago lutescens",null,0]
[null,null,null,"Filago pyramidata",null,0]
[null,null,null,"Formica exsecta",null,0]
[null,null,null,"Formica rufibarbis",null,0]
[null,null,null,"Fumaria purpurea",null,0]
[null,null,null,"Galeopsis angustifolia",null,0]
[null,null,null,"Galium pumilum",null,0]
[null,null,null,"Galium tricornutum",null,0]
[null,null,null,"Gammarus insensibili",null,0]
[null,null,null,"Gentianella anglica",null,0]
[null,null,null,"Gentianella campestris",null,0]
[null,null,null,"Gentianella ciliata",null,0]
[null,null,null,"Gentianella uliginosa",null,0]
[null,null,null,"Glossosoma intermedi",null,0]
[null,null,null,"Glyphesis cottonae",null,0]
[null,null,null,"Gnophomyia elsneri",null,0]
[null,null,null,"Gnorimus nobilis",null,0]
[null,null,null,"Gnorimus nobilis*",null,0]
[null,null,null,"Gnorimus variabilis",null,0]
[null,null,null,"Graphoderus zonatus",null,0]
[null,null,null,"Grapholita pallifron",null,0]
[null,null,null,"Gryllus campestris",null,0]
[null,null,null,"Gyraulus acronicus",null,0]
[null,null,null,"Hagenella clathrata",null,0]
[null,null,null,"Haplodrassus dalmate",null,0]
[null,null,null,"Harpalus froelichii",null,0]
[null,null,null,"Harpalus honestus",null,0]
[null,null,null,"Harpalus melancholic",null,0]
[null,null,null,"Helianthemum oelandicum subsp. levigatum",null,0]
[null,null,null,"Helophorus laticolli",null,0]
[null,null,null,"Herminium monorchis",null,0]
[null,null,null,"Hieracium subgracilentipes",null,0]
[null,null,null,"Hirudo medicinalis",null,0]
[null,null,null,"Hirundo medicinalis",null,0]
[null,null,null,"Homonotus sanguinole",null,0]
[null,null,null,"Hordeum marinum",null,0]
[null,null,null,"Hydrometra gracilent",null,0]
[null,null,null,"Hydroporus necopinat",null,0]
[null,null,null,"Hydroporus rufifrons",null,0]
[null,null,null,"Hydropsyche bulgarom",null,0]
[null,null,null,"Hypopitys monotropa",null,0]
[null,null,null,"Hypopitys monotropa subsp. hypophegea",null,0]
[null,null,null,"Hypopitys monotropa subsp. monotropa",null,0]
[null,null,null,"Iberis amara",null,0]
[null,null,null,"Idiocera sexguttata",null,0]
[null,null,null,"Illecebrum verticillatum",null,{"$f":"SUM(E262/E$3)*100","v":0}]
[null,null,null,"Ironoquia dubia",null,0]
[null,null,null,"Ischnodes sanguinico",null,0]
[null,null,null,"Juncus pygmaeus",null,0]
[null,null,null,"Juniperus communis",null,0]
[null,null,null,"Juniperus communis subsp. communis",null,0]
[null,null,null,"Juniperus communis subsp. hemisphaerica",null,0]
[null,null,null,"Juniperus communis subsp. nana",null,0]
[null,null,null,"Laccophilus poecilus",null,0]
[null,null,null,"Lacon quercus",null,0]
[null,null,null,"Lactuca saligna",null,0]
[null,null,null,"Lasioglossum angusti",null,0]
[null,null,null,"Lebia cyanocephala",null,0]
[null,null,null,"Leersia oryzoides",null,0]
[null,null,null,"Limoniscus violaceus",null,0]
[null,null,null,"Liparis loeselii",null,0]
[null,null,null,"Lipsothrix ecucullat",null,0]
[null,null,null,"Lipsothrix errans",null,0]
[null,null,null,"Lipsothrix nervosa",null,0]
[null,null,null,"Lipsothrix nobilis",null,0]
[null,null,null,"Lobelia urens",null,0]
[null,null,null,"Lolium temulentum",null,0]
[null,null,null,"Lophopus crystallinu",null,0]
[null,null,null,"Luronium natans",null,0]
[null,null,null,"Luzula pallescens",null,0]
[null,null,null,"Luzula pallidula",null,0]
[null,null,null,"Lycopodiella inundata",null,0]
[null,null,null,"Lythrum hyssopifolia",null,0]
[null,null,null,"Macrosteles cyane",null,0]
[null,null,null,"Malachius aeneus",null,0]
[null,null,null,"Matthiola sinuata",null,0]
[null,null,null,"Mecopisthes peusi",null,0]
[null,null,null,"Melampyrum cristatum",null,0]
[null,null,null,"Melanapion minimum",null,0]
[null,null,null,"Melandrya barbata",null,0]
[null,null,null,"Melanotus punctoline",null,0]
[null,null,null,"Melittis melissophyllum",null,0]
[null,null,null,"Meloe brevicollis",null,0]
[null,null,null,"Meloe proscarabaeus",null,0]
[null,null,null,"Meloe rugosus",null,0]
[null,null,null,"Meloe violaceus",null,0]
[null,null,null,"Mentha pulegium",3,2.091685068847781E-3]
[null,null,null,"Mercuria similis",null,0]
[null,null,null,"Metaiulus pratensis",null,0]
[null,null,null,"Microthlaspi perfoliatum",null,0]
[null,null,null,"Midia midas",null,0]
[null,null,null,"Minuartia hybrida",2,1.3944567125651873E-3]
[null,null,null,"Monocephalus castane",null,0]
[null,null,null,"Monotropa hypopitys",1,6.9722835628259364E-4]
[null,null,null,"Monotropa hypopitys subsp. hypophegea",null,0]
[null,null,null,"Monotropa hypopitys subsp. hypopitys",null,0]
[null,null,null,"Muscari neglectum",3.01,2.0986573524106066E-3]
[null,null,null,"Myolepta potens",null,0]
[null,null,null,"Najas marina",null,0]
[null,null,null,"Nematostella vectens",null,0]
[null,null,null,"Neoempheria lineola",null,0]
[null,null,null,"Neotinea ustulata",null,0]
[null,null,null,"Niphargus glenniei",null,0]
[null,null,null,"Nomada armata",null,0]
[null,null,null,"Nothophantes horridu",null,0]
[null,null,null,"Notioscopus sarcinat",null,0]
[null,null,null,"Oberea oculata",null,0]
[null,null,null,"Ochthebius poweri",null,0]
[null,null,null,"Odontomyia hydroleon",null,0]
[null,null,null,"Odynerus melanocepha",null,{"$f":"SUM(E326/E$3)*100","v":0}]
[null,null,null,"Odynerus simillimus",null,0]
[null,null,null,"Oenanthe fistulosa",6,4.183370137695562E-3]
[null,null,null,"Omphiscola glabra",null,0]
[null,null,null,"Ophonus laticollis",null,0]
[null,null,null,"Ophonus melletii",null,0]
[null,null,null,"Ophonus puncticollis",null,0]
[null,null,null,"Ophonus stictus",null,0]
[null,null,null,"Ophrys insectifera",1,6.9722835628259364E-4]
[null,null,null,"Orchestes testaceus",null,0]
[null,null,null,"Orchis anthropophora",null,0]
[null,null,null,"Orchis simia",null,0]
[null,null,null,"Orobanche picridis",null,0]
[null,null,null,"Osmia parietina",null,0]
[null,null,null,"Osmia xanthomelana",null,0]
[null,null,null,"Ozyptila nigrita",null,0]
[null,null,null,"Phaonia jaroschewski",null,0]
[null,null,null,"Philodromus fallax",null,0]
[null,null,null,"Philodromus margarit",null,0]
[null,null,null,"Philorhizus quadrisi",null,0]
[null,null,null,"Philorhizus vectensi",null,0]
[null,null,null,"Physatocheila smrecz",null,0]
[null,null,null,"Phyteuma spicatum",null,0]
[null,null,null,"Pilularia globulifera",null,0]
[null,null,null,"Pisidium tenuilineat",null,0]
[null,null,null,"Platanthera bifolia",null,0]
[null,null,null,"Platycis cosnardi",null,0]
[null,null,null,"Poa glauca",null,0]
[null,null,null,"Poecilus kugelanni",null,0]
[null,null,null,"Pogonus luridipennis",null,0]
[null,null,null,"Polystichum lonchitis",null,0]
[null,null,null,"Polyzonium germanicu",null,0]
[null,null,null,"Potamanthus luteus",null,0]
[null,null,null,"Potamogeton acutifolius",null,0]
[null,null,null,"Potamogeton compressus",null,0]
[null,null,null,"Prostoma jenningsi",null,0]
[null,null,null,"Pseudanodonta compla",null,0]
[null,null,null,"Pseudepipona herrich",null,0]
[null,null,null,"Pseudeuophrys obsole",null,0]
[null,null,null,"Pseudorchis albida",null,0]
[null,null,null,"Puccinellia fasciculata",null,0]
[null,null,null,"Pulicaria vulgaris",null,0]
[null,null,null,"Pulmonaria obscura",null,0]
[null,null,null,"Pulsatilla vulgaris",null,0]
[null,null,null,"Pyrus cordata",null,0]
[null,null,null,"Quickella arenaria",null,0]
[null,null,null,"Ranunculus arvensis",6,4.183370137695562E-3]
[null,null,null,"Ranunculus tripartitus",null,0]
[null,null,null,"Rhabdomastix japonic",null,0]
[null,null,null,"Rhabdomastix laeta",null,0]
[null,null,null,"Rheumaptera hastata",null,0]
[null,null,null,"Ribautodelphax imita",null,0]
[null,null,null,"Rumex rupestris",null,0]
[null,null,null,"Saaristoa firma",null,0]
[null,null,null,"Salix lapponum",null,0]
[null,null,null,"Salsola kali subsp. kali",null,0]
[null,null,null,"Salticella fasciata",null,0]
[null,null,null,"Saxifraga hirculus",null,0]
[null,null,null,"Scandix pecten-veneris",null,0]
[null,null,null,"Schoenoplectus triqueter",null,0]
[null,null,null,"Scirpoides holoschoenus",null,0]
[null,null,null,"Scleranthus annuus",1.01,7.0420063984541958E-4]
[null,null,null,"Scleranthus annuus subsp. annuus",null,0]
[null,null,null,"Scleranthus annuus subsp. polycarpos",null,0]
[null,null,null,"Scleranthus perennis subsp. prostratus",null,{"$f":"SUM(E390/E$3)*100","v":0}]
[null,null,null,"Scythris siccella",null,0]
[null,null,null,"Segmentina nitida",null,0]
[null,null,null,"Semljicola caliginos",null,0]
[null,null,null,"Senecio paludosus",null,0]
[null,null,null,"Silene gallica",null,0]
[null,null,null,"Silene gallica var. anglica",null,0]
[null,null,null,"Silene gallica var. gallica",null,0]
[null,null,null,"Silene gallica var. quinquevulnera",null,0]
[null,null,null,"Silene otites",null,0]
[null,null,null,"Silometopus incurvat",null,0]
[null,null,null,"Siona lineata",null,0]
[null,null,null,"Sitticus caricis",null,0]
[null,null,null,"Sitticus distinguend",null,0]
[null,null,null,"Sium latifolium",null,0]
[null,null,null,"Sorbus bristoliensis",null,0]
[null,null,null,"Sorbus eminens",null,0]
[null,null,null,"Sorbus subcuneata",null,0]
[null,null,null,"Sorbus vexans",null,0]
[null,null,null,"Sorbus wilmottiana",null,0]
[null,null,null,"Spartina maritima",null,0]
[null,null,null,"Sphaerium solidum",null,0]
[null,null,null,"Stellaria palustris",null,0]
[null,null,null,"Stenus longitarsis",null,0]
[null,null,null,"Stethophyma grossum",null,0]
[null,null,null,"Synaptus filiformis",null,0]
[null,null,null,"Tapinocyba mitis",null,0]
[null,null,null,"Temnothorax interrup",null,0]
[null,null,null,"Tephroseris integrifolia subsp. integrifolia",null,0]
[null,null,null,"Teucrium scordium",null,0]
[null,null,null,"Thlaspi perfoliatum",null,0]
[null,null,null,"Thyridanthrax fenest",null,0]
[null,null,null,"Torilis arvensis",1,6.9722835628259364E-4]
[null,null,null,"Trachysphaera lobata",null,0]
[null,null,null,"Triops cancriformis",null,0]
[null,null,null,"Truncatellina cylind",null,0]
[null,null,null,"Turritis glabra",null,0]
[null,null,null,"Valerianella rimosa",null,0]
[null,null,null,"Veronica triphyllos",null,0]
[null,null,null,"Veronica verna",null,0]
[null,null,null,"Vertigo angustior",null,0]
[null,null,null,"Vertigo angustior*",null,0]
[null,null,null,"Vertigo genesii",null,0]
[null,null,null,"Vertigo geyeri",null,0]
[null,null,null,"Vertigo moulinisiana",null,0]
[null,null,null,"Vertigo moulinsiana",null,0]
[null,null,null,"Victorella pavida",null,0]
[null,null,null,"Viola lactea",null,0]
[null,null,null,"Viola persicifolia",null,0]
[null,null,null,"Walckenaeria cornicu",null,0]
[null,null,null,"Woodsia ilvensis",null,0]
[]
[null,"2013 GW safeguard zone risk assessment - Groundwater (GWSGZN)"]
[null,"Name","Land Draining to, or within, WFD Protected Area or GES Failure","Failing or \"At Risk\" Element"]
[null,"GWSGZ0073","Drinking Water - Groundwater","Nitrate",null,{"$f":"SUM(E444/E$3)*100","v":0}]
[null,"GWSGZ0207","Drinking Water - Groundwater","Nitrate",null,0]
[null,"GWSGZ0018","Drinking Water - Groundwater","Nitrate",null,0]
[null,"GWSGZ0182","Drinking Water - Groundwater","Nitrate",null,0]
[null,"GWSGZ0001","Drinking Water - Groundwater","Nitrate",null,0]
[null,"GWSGZ0013","Drinking Water - Groundwater","Nitrate",null,0]
[null,"GWSGZ0014","Drinking Water - Groundwater","Nitrate",null,0]
[null,"GWSGZ0138","Drinking Water - Groundwater","Nitrate",null,0]
[null,"GWSGZ0074","Drinking Water - Groundwater","Nitrate",null,0]
[null,"GWSGZ0156","Drinking Water - Groundwater","Nitrate",null,0]
[null,"GWSGZ0259","Drinking Water - Groundwater","Nitrate",null,0]
[null,"GWSGZ0210","Drinking Water - Groundwater","Nitrate",null,0]
[null,"GWSGZ0203","Drinking Water - Groundwater","Nitrate",null,0]
[null,"GWSGZ0036","Drinking Water - Groundwater","Nitrate",null,0]
[null,"GWSGZ0186","Drinking Water - Groundwater","Nitrate",null,0]
[null,"GWSGZ0255","Drinking Water - Groundwater","Nitrate",null,0]
[null,"GWSGZ0002","Drinking Water - Groundwater","Nitrate",null,0]
[null,"GWSGZ0075","Drinking Water - Groundwater","Nitrate",null,0]
[null,"GWSGZ0141","Drinking Water - Groundwater","Nitrate",null,0]
[null,"GWSGZ0211","Drinking Water - Groundwater","Nitrate",null,0]
[null,"GWSGZ0165","Drinking Water - Groundwater","Nitrate",null,0]
[null,"GWSGZ0261","Drinking Water - Groundwater","Nitrate",null,0]
[null,"GWSGZ0076","Drinking Water - Groundwater","Nitrate",null,0]
[null,"GWSGZ0077","Drinking Water - Groundwater","Nitrate",null,0]
[null,"GWSGZ0025","Drinking Water - Groundwater","Nitrate",null,0]
[null,"GWSGZ0240","Drinking Water - Groundwater","Nitrate",null,0]
[null,"GWSGZ0101","Drinking Water - Groundwater","Nitrate",null,0]
[null,"GWSGZ0213","Drinking Water - Groundwater","Nitrate",null,0]
[null,"GWSGZ0102","Drinking Water - Groundwater","Nitrate",null,0]
[null,"GWSGZ0079","Drinking Water - Groundwater","Nitrate",null,0]
[null,"GWSGZ0045, GWSGZ0042, GWSGZ0043, GWSGZ0061, GWSGZ0056","Drinking Water - Groundwater","Nitrate",null,0]
[null,"GWSGZ0103","Drinking Water - Groundwater","Nitrate",null,0]
[null,"GWSGZ0214","Drinking Water - Groundwater","Nitrate",null,0]
[null,"GWSGZ0064","Drinking Water - Groundwater","Nitrate",null,0]
[null,"GWSGZ0250","Drinking Water - Groundwater","Nitrate",null,0]
[null,"GWSGZ0080","Drinking Water - Groundwater","Nitrate",null,0]
[null,"GWSGZ0241","Drinking Water - Groundwater","Nitrate",null,0]
[null,"GWSGZ0081","Drinking Water - Groundwater","Nitrate",null,0]
[null,"GWSGZ0082","Drinking Water - Groundwater","Nitrate",null,0]
[null,"GWSGZ0216","Drinking Water - Groundwater","Nitrate",null,0]
[null,"GWSGZ0083","Drinking Water - Groundwater","Nitrate",null,0]
[null,"GWSGZ0171","Drinking Water - Groundwater","Nitrate",null,0]
[null,"GWSGZ0243","Drinking Water - Groundwater","Nitrate",null,0]
[null,"GWSGZ0104","Drinking Water - Groundwater","Nitrate",null,0]
[null,"GWSGZ0105","Drinking Water - Groundwater","Nitrate",null,0]
[null,"GWSGZ0142","Drinking Water - Groundwater","Nitrate",null,0]
[null,"GWSGZ0218","Drinking Water - Groundwater","Nitrate",null,0]
[null,"GWSGZ0046","Drinking Water - Groundwater","Nitrate",null,0]
[null,"GWSGZ0004","Drinking Water - Groundwater","Nitrate",null,0]
[null,"GWSGZ0106","Drinking Water - Groundwater","Nitrate",null,0]
[null,"GWSGZ0084","Drinking Water - Groundwater","Nitrate",null,0]
[null,"GWSGZ0253","Drinking Water - Groundwater","Nitrate",null,0]
[null,"GWSGZ0005","Drinking Water - Groundwater","Nitrate",null,0]
[null,"GWSGZ0085","Drinking Water - Groundwater","Nitrate",null,0]
[null,"GWSGZ0012","Drinking Water - Groundwater","Nitrate",null,0]
[null,"GWSGZ0108","Drinking Water - Groundwater","Nitrate",null,0]
[null,"GWSGZ0257","Drinking Water - Groundwater","Nitrate",null,0]
[null,"GWSGZ0109","Drinking Water - Groundwater","Nitrate",null,0]
[null,"GWSGZ0069","Drinking Water - Groundwater","Nitrate",null,0]
[null,"GWSGZ0244","Drinking Water - Groundwater","Nitrate",null,0]
[null,"GWSGZ0070","Drinking Water - Groundwater","Nitrate",null,0]
[null,"GWSGZ0016","Drinking Water - Groundwater","Nitrate",642.66387158800001,0.44808347482950905]
[null,"GWSGZ0020","Drinking Water - Groundwater","Nitrate",null,0]
[null,"GWSGZ0049 and GWSGZ0062","Drinking Water - Groundwater","Nitrate",null,0]
[null,"GWSGZ0190","Drinking Water - Groundwater","Nitrate",null,{"$f":"SUM(E508/E$3)*100","v":0}]
[null,"GWSGZ0246","Drinking Water - Groundwater","Nitrate",null,0]
[null,"GWSGZ0032","Drinking Water - Groundwater","Nitrate",null,0]
[null,"GWSGZ0158","Drinking Water - Groundwater","Nitrate",null,0]
[null,"GWSGZ0221","Drinking Water - Groundwater","Nitrate",null,0]
[null,"GWSGZ0114","Drinking Water - Groundwater","Nitrate",null,0]
[null,"GWSGZ0088","Drinking Water - Groundwater","Nitrate",null,0]
[null,"GWSGZ0007","Drinking Water - Groundwater","Nitrate",null,0]
[null,"GWSGZ0015","Drinking Water - Groundwater","Nitrate",null,0]
[null,"GWSGZ0021","Drinking Water - Groundwater","Nitrate",null,0]
[null,"GWSGZ0115","Drinking Water - Groundwater","Nitrate",null,0]
[null,"GWSGZ0144","Drinking Water - Groundwater","Nitrate",null,0]
[null,"GWSGZ0251","Drinking Water - Groundwater","Nitrate",null,0]
[null,"GWSGZ0145","Drinking Water - Groundwater","Nitrate",null,0]
[null,"GWSGZ0052","Drinking Water - Groundwater","Nitrate",null,0]
[null,"GWSGZ0192","Drinking Water - Groundwater","Nitrate",null,0]
[null,"GWSGZ0008","Drinking Water - Groundwater","Nitrate",null,0]
[null,"GWSGZ0089","Drinking Water - Groundwater","Nitrate",null,0]
[null,"GWSGZ0263","Drinking Water - Groundwater","Nitrate",null,0]
[null,"GWSGZ0033","Drinking Water - Groundwater","Nitrate",null,0]
[null,"GWSGZ0117","Drinking Water - Groundwater","Nitrate",null,0]
[null,"GWSGZ0119","Drinking Water - Groundwater","Nitrate",null,0]
[null,"GWSGZ0010","Drinking Water - Groundwater","Nitrate",null,0]
[null,"GWSGZ0175","Drinking Water - Groundwater","Nitrate",null,0]
[null,"GWSGZ0194","Drinking Water - Groundwater","Nitrate",null,0]
[null,"GWSGZ0148","Drinking Water - Groundwater","Nitrate",null,0]
[null,"GWSGZ0123","Drinking Water - Groundwater","Nitrate",null,0]
[null,"GWSGZ0197","Drinking Water - Groundwater","Nitrate",null,0]
[null,"GWSGZ0059","Drinking Water - Groundwater","Nitrate",null,0]
[null,"GWSGZ0011","Drinking Water - Groundwater","Nitrate",null,0]
[null,"GWSGZ0125","Drinking Water - Groundwater","Nitrate",null,0]
[null,"GWSGZ0060","Drinking Water - Groundwater","Nitrate",null,0]
[null,"GWSGZ0227","Drinking Water - Groundwater","Nitrate",null,0]
[null,"GWSGZ0176","Drinking Water - Groundwater","Nitrate",null,0]
[null,"GWSGZ0090","Drinking Water - Groundwater","Nitrate",null,0]
[null,"GWSGZ0177","Drinking Water - Groundwater","Nitrate",null,0]
[null,"GWSGZ0229","Drinking Water - Groundwater","Nitrate",null,0]
[null,"GWSGZ0127","Drinking Water - Groundwater","Nitrate",null,0]
[null,"GWSGZ0248","Drinking Water - Groundwater","Nitrate",null,0]
[null,"GWSGZ0128","Drinking Water - Groundwater","Nitrate",null,0]
[null,"GWSGZ0230","Drinking Water - Groundwater","Nitrate",null,0]
[null,"GWSGZ0129","Drinking Water - Groundwater","Nitrate",null,0]
[null,"GWSGZ0091","Drinking Water - Groundwater","Nitrate",null,0]
[null,"GWSGZ0131","Drinking Water - Groundwater","Nitrate",null,0]
[null,"GWSGZ0092","Drinking Water - Groundwater","Nitrate",null,0]
[null,"GWSGZ0179","Drinking Water - Groundwater","Nitrate",null,0]
[null,"GWSGZ0200","Drinking Water - Groundwater","Nitrate",null,0]
[null,"GWSGZ0093","Drinking Water - Groundwater","Nitrate",null,0]
[null,"GWSGZ0231","Drinking Water - Groundwater","Nitrate",null,0]
[null,"GWSGZ0153","Drinking Water - Groundwater","Nitrate",null,0]
[null,"GWSGZ0133","Drinking Water - Groundwater","Nitrate",null,0]
[null,"GWSGZ0235","Drinking Water - Groundwater","Nitrate",null,0]
[null,"GWSGZ0136","Drinking Water - Groundwater","Nitrate",null,0]
[null,"GWSGZ0252","Drinking Water - Groundwater","Nitrate",null,0]
[null,"GWSGZ0094","Drinking Water - Groundwater","Nitrate",null,0]
[null,"GWSGZ0236","Drinking Water - Groundwater","Nitrate",null,0]
[]
[null,"EA/NE 2013 GWDTE assessment - N2K (GWN2KID)"]
[null,"Name","Land Draining to, or within, WFD Protected Area or GES Failure","Failing or \"At Risk\" Element"]
[null,"Bassenthwaite Lake (SSSI)","Nature 2000 groundwater dependent wetland","Nitrate",null,0]
[]
[null,"EA/NE 2013 GWDTE assessment - SSSI (GWSSSIID)"]
[null,"Name","Land Draining to, or within, WFD Protected Area or GES Failure","Failing or \"At Risk\" Element"]
[null,"Alpine Meadow (SSSI)","SSSI groundwater dependent wetland","Nitrate",null,0]
[null,"Bassenthwaite Lake (SSSI)","SSSI groundwater dependent wetland","Nitrate",null,{"$f":"SUM(E572/E$3)*100","v":0}]
[null,"Bencroft Hill Meadows (SSSI)","SSSI groundwater dependent wetland","Nitrate",null,0]
[null,"Charnock Richard Pasture (SSSI)","SSSI groundwater dependent wetland","Nitrate",null,0]
[null,"CLOY BROOK PASTURES","SSSI groundwater dependent wetland","Nitrate",null,0]
[null,"Foxley Wood (SSSI)","SSSI groundwater dependent wetland","Nitrate",null,0]
[null,"Hawthorn Cottage Pasture (SSSI)","SSSI groundwater dependent wetland","Nitrate",null,0]
[null,"Muxton Marsh (SSSI)","SSSI groundwater dependent wetland","Nitrate",null,0]
[null,"Prees Branch Canal (SSSI)","SSSI groundwater dependent wetland","Nitrate",null,0]
[null,"RUABON/LLANTYSILIO MOUNTAINS AND MINERA","SSSI groundwater dependent wetland","Nitrate",null,0]
[null,"Smarts & Prey Heaths (SSSI)","SSSI groundwater dependent wetland","Nitrate",null,0]
[null,"Wendlebury Meads & Mansmoor Closes (SSSI)","SSSI groundwater dependent wetland","Nitrate",null,0]
[null,"Wimboldsley Wood (SSSI)","SSSI groundwater dependent wetland","Nitrate",null,0]
[]
[null,"2013 GW safeguard zone risk assessment - Pesticides Risk (GWPestSGZ)"]
[null,"Name","Land Draining to, or within, WFD Protected Area or GES Failure","Failing or \"At Risk\" Element"]
[null,"TH098","Drinking Water - Groundwater","Pesticides",null,0]
[null,"SU005","Drinking Water - Groundwater","Pesticides",null,0]
[null,"TH049","Drinking Water - Groundwater","Pesticides",null,0]
[null,"SU151","Drinking Water - Groundwater","Pesticides",null,0]
[null,"TH223","Drinking Water - Groundwater","Pesticides",null,0]
[null,"TH130","Drinking Water - Groundwater","Pesticides",null,0]
[null,"TH127","Drinking Water - Groundwater","Pesticides",null,0]
[null,"TH111","Drinking Water - Groundwater","Pesticides",null,0]
[null,"TH137","Drinking Water - Groundwater","Pesticides",null,0]
[null,"SU119","Drinking Water - Groundwater","Pesticides",null,0]
[null,"SW089","Drinking Water - Groundwater","Pesticides",null,0]
[null,"TH144","Drinking Water - Groundwater","Pesticides",null,0]
[null,"SU007","Drinking Water - Groundwater","Pesticides",null,0]
[null,"SU105","Drinking Water - Groundwater","Pesticides",null,0]
[null,"SU414","Drinking Water - Groundwater","Pesticides",null,0]
[null,"TH048","Drinking Water - Groundwater","Pesticides",null,0]
[null,"bespoke","Drinking Water - Groundwater","Pesticides",null,0]
[null,"SU031","Drinking Water - Groundwater","Pesticides",null,0]
[null,"TH054","Drinking Water - Groundwater","Pesticides",null,0]
[null,"TH100","Drinking Water - Groundwater","Pesticides",null,0]
[null,"TH104","Drinking Water - Groundwater","Pesticides",null,0]
[null,"SU167","Drinking Water - Groundwater","Pesticides",null,0]
[null,"TH097","Drinking Water - Groundwater","Pesticides",null,0]
[null,"TH077","Drinking Water - Groundwater","Pesticides",null,0]
[]
[null,"August 2013 DWP Plans - Marine SSSI (MSSSIID)"]
[null,"Name","Land Draining to, or within, WFD Protected Area or GES Failure","Failing or \"At Risk\" Element"]
[null,"Chesil Beech","SSSI Marine","Nitrate and Phosphate",null,0]
[null,"Chichester Harbour","SSSI Marine","Nitrate and Phosphate",null,0]
[null,"Kingsbridge Estuary","SSSI Marine","Nitrate and Phosphate",null,0]
[null,"Medina and Newtown Harbour","SSSI Marine","Nitrate and Phosphate",null,0]
[null,"Poole Harbour","SSSI Marine","Nitrate and Phosphate",null,0]
[]
[null,"August 2013 DWP Plans - Marine N2K (MN2KID)"]
[null,"Name","Land Draining to, or within, WFD Protected Area or GES Failure","Failing or \"At Risk\" Element"]
[null,"Chesil Beech","Natura 2000 Marine","Nitrate and Phosphate",null,0]
[null,"Chichester Harbour","Natura 2000 Marine","Nitrate and Phosphate",null,0]
[null,"Medina and Newtown Harbour","Natura 2000 Marine","Nitrate and Phosphate",null,0]
[null,"Poole Harbour","Natura 2000 Marine","Nitrate and Phosphate",null,0]
[]
[null,"2013 Indicative 2013 SFW assessment (SFWID)"]
[null,"Name","Land Draining to, or within, WFD Protected Area or GES Failure","Failing or \"At Risk\" Element"]
[null,"Bigbury & Avon","Shellfish Water","Faecal Matter",null,0]
[null,"Camel Estuary","Shellfish Water","Faecal Matter",null,0]
[null,"Carrick Roads","Shellfish Water","Faecal Matter",null,0]
[null,"Exe Estuary (West)","Shellfish Water","Faecal Matter",null,0]
[null,"Fal Estuary","Shellfish Water","Faecal Matter",null,0]
[null,"Fowey","Shellfish Water","Faecal Matter",null,0]
[null,"Fowey Wiseman's Reach","Shellfish Water","Faecal Matter",null,0]
[null,"Helford River","Shellfish Water","Faecal Matter",null,{"$f":"SUM(E636/E$3)*100","v":0}]
[null,"Lune (Broadfleet)","Shellfish Water","Faecal Matter",null,0]
[null,"Lune (Plover Scar)","Shellfish Water","Faecal Matter",null,0]
[null,"Lune (Wyre Estuary)","Shellfish Water","Faecal Matter",null,0]
[null,"Lynher","Shellfish Water","Faecal Matter",null,0]
[null,"Morecambe Bay (Leven)","Shellfish Water","Faecal Matter",null,0]
[null,"Morecambe Bay East","Shellfish Water","Faecal Matter",null,0]
[null,"Penryn","Shellfish Water","Faecal Matter",null,0]
[null,"Percuil","Shellfish Water","Faecal Matter",null,0]
[null,"Poole Bay","Shellfish Water","Faecal Matter",null,0]
[null,"Poole Harbour North","Shellfish Water","Faecal Matter",null,0]
[null,"Poole Harbour South","Shellfish Water","Faecal Matter",null,0]
[null,"Poole Harbour West","Shellfish Water","Faecal Matter",null,0]
[null,"Ruan Creek","Shellfish Water","Faecal Matter",null,0]
[null,"Silloth","Shellfish Water","Faecal Matter",null,0]
[null,"Solway","Shellfish Water","Faecal Matter",null,0]
[null,"Start Bay","Shellfish Water","Faecal Matter",null,0]
[null,"Stour Estuary (Kent)","Shellfish Water","Faecal Matter",null,0]
[null,"Taw Estuary","Shellfish Water","Faecal Matter",null,0]
[null,"Taw-Torridge Estuary Mouth","Shellfish Water","Faecal Matter",null,0]
[null,"Torridge Estuary","Shellfish Water","Faecal Matter",null,0]
[null,"Tresillian","Shellfish Water","Faecal Matter",null,0]
[null,"Walney Roosebeck","Shellfish Water","Faecal Matter",null,0]
[null,"Walney South","Shellfish Water","Faecal Matter",null,0]
[null,"Yealm","Shellfish Water","Faecal Matter",null,0]
[]
[null,"2013 At Risk Bathing Waters (BWID)"]
[null,"Name","Land Draining to, or within, WFD Protected Area or GES Failure","Failing or \"At Risk\" Element"]
[null,"Allonby","Bathing Water","Faecal Matter",null,0]
[null,"Askam-in-Furness","Bathing Water","Faecal Matter",null,0]
[null,"Bembridge","Bathing Water","Faecal Matter",null,0]
[null,"Blackpool North","Bathing Water","Faecal Matter",null,0]
[null,"Budleigh Salterton","Bathing Water","Faecal Matter",null,0]
[null,"Burnham Jetty","Bathing Water","Faecal Matter",null,0]
[null,"Combe Martin","Bathing Water","Faecal Matter",null,0]
[null,"East Looe","Bathing Water","Faecal Matter",null,0]
[null,"Fleetwood","Bathing Water","Faecal Matter",null,0]
[null,"Gorran Haven Little Perhaver","Bathing Water","Faecal Matter",null,0]
[null,"Heysham Half Moon Bay","Bathing Water","Faecal Matter",null,0]
[null,"Ilfracombe Capstone (Wildersmouth)","Bathing Water","Faecal Matter",null,0]
[null,"Ilfracombe Hele","Bathing Water","Faecal Matter",null,0]
[null,"Instow","Bathing Water","Faecal Matter",null,0]
[null,"Kimmeridge Bay","Bathing Water","Faecal Matter",null,0]
[null,"Mothecombe","Bathing Water","Faecal Matter",null,0]
[null,"Porth","Bathing Water","Faecal Matter",null,0]
[null,"Porthluney","Bathing Water","Faecal Matter",null,0]
[null,"Seascale","Bathing Water","Faecal Matter",null,0]
[null,"Seaton (Cornwall)","Bathing Water","Faecal Matter",null,0]
[null,"Seaton (Devon)","Bathing Water","Faecal Matter",null,0]
[null,"Seaton Carew North","Bathing Water","Faecal Matter",null,0]
[null,"Silloth","Bathing Water","Faecal Matter",null,0]
[null,"Spittal","Bathing Water","Faecal Matter",null,0]
[null,"Staithes","Bathing Water","Faecal Matter",null,0]
[null,"Teignmouth Town","Bathing Water","Faecal Matter",null,0]
[null,"Wembury","Bathing Water","Faecal Matter",null,0]
[null,"Weston-super-Mare Uphill Slipway","Bathing Water","Faecal Matter",null,0]
[]
[null,"August 2013 DWP Plans - SSSI Lakes (LPSSSIID)"]
[null,"Name","Land Draining to, or within, WFD Protected Area or GES Failure","Failing or \"At Risk\" Element"]
[null,"ABBOTS MOSS","SSSI Lake","Phosphate",null,0]
[null,"BAG MERE","SSSI Lake","Phosphate",null,0]
[null,"BAR MERE, CHAPEL MERE","SSSI Lake","Phosphate",null,0]
[null,"BARNBY BROAD & MARSHES","SSSI Lake","Phosphate",null,0]
[null,"BASSENTHWAITE LAKE","SSSI Lake","Phosphate",null,0]
[null,"BETLEY MERE","SSSI Lake","Phosphate",null,{"$f":"SUM(E700/E$3)*100","v":0}]
[null,"BIGLANDS BOG","SSSI Lake","Phosphate",null,0]
[null,"BITTELL RESERVOIRS","SSSI Lake","Phosphate",6561.7729051400001,4.5750541369504214]
[null,"BLACKBROOK RESERVOIR","SSSI Lake","Phosphate",null,0]
[null,"BLELHAM TARN AND BOG","SSSI Lake","Phosphate",null,0]
[null,"BRADGATE PARK & CROPSTON RESERVOIR","SSSI Lake","Phosphate",null,0]
[null,"COMBER MERE","SSSI Lake","Phosphate",null,0]
[null,"COMBS RESERVOIR","SSSI Lake","Phosphate",null,0]
[null,"COP MERE","SSSI Lake","Phosphate",null,0]
[null,"EBBLAKE BOG","SSSI Lake","Phosphate",null,0]
[null,"ELTER WATER","SSSI Lake","Phosphate",null,0]
[null,"ESTHWAITE WATER","SSSI Lake","Phosphate",null,0]
[null,"FAIRBURN AND NEWTON INGS","SSSI Lake","Phosphate",null,0]
[null,"FENEMERE","SSSI Lake","Phosphate",null,0]
[null,"FENN'S, WHIXALL, BETTISFIELD, WEM and CADNEY MOSS*","SSSI Lake","Phosphate",null,0]
[null,"GROBY POOL & WOODS","SSSI Lake","Phosphate",null,0]
[null,"HORNSEA MERE","SSSI Lake","Phosphate",null,0]
[null,"LEIGHTON MOSS AND HAWES WATER","SSSI Lake","Phosphate",null,0]
[null,"Loe Pool","SSSI Lake","Phosphate",null,0]
[null,"MAER POOL","SSSI Lake","Phosphate",null,0]
[null,"MESSINGHAM SAND QUARRY","SSSI Lake","Phosphate",null,0]
[null,"OVERWATER","SSSI Lake","Phosphate",null,0]
[null,"Radipole Lake","SSSI Lake","Phosphate",null,0]
[null,"RAINWORTH LAKES","SSSI Lake","Phosphate",null,0]
[null,"ROSTHERNE MERE, THE MERE and TABLEY MERE","SSSI Lake","Phosphate",null,0]
[null,"SANDBACH FLASHES","SSSI Lake","Phosphate",null,0]
[null,"SEMER WATER","SSSI Lake","Phosphate",null,0]
[null,"Slapton Ley","SSSI Lake","Phosphate",null,0]
[null,"STANLEY GHYLL","SSSI Lake","Phosphate",null,0]
[null,"TATTON MERES","SSSI Lake","Phosphate",null,0]
[null,"UPPER THURNE BROADS & MARSHES","SSSI Lake","Phosphate",null,0]
[null,"WESTWOOD GREAT POOL","SSSI Lake","Phosphate",728.73186049900005,0.50809251726647409]
[null,"WHITE MERE","SSSI Lake","Phosphate",null,0]
[null,"YARE BROADS & MARSHES","SSSI Lake","Phosphate",null,0]
[]
[null,"2013 Reasons for Failure Database - Lakes (LPGESID)"]
[null,"Name","Land Draining to, or within, WFD Protected Area or GES Failure","Failing or \"At Risk\" Element"]
[null,"Abberton Reservoir","Lake","Phosphate",null,0]
[null,"Alton Water Reservoir","Lake","Phosphate",null,0]
[null,"Ardingly Reservoir","Lake","Phosphate",null,0]
[null,"BAR MERE, CHAPEL MERE","Lake","Phosphate",null,0]
[null,"BARNBY BROAD & MARSHES","Lake","Phosphate",null,0]
[null,"BASSENTHWAITE LAKE","Lake","Phosphate",null,0]
[null,"Bewl Water","Lake","Phosphate",null,0]
[null,"Blagdon Lake","Lake","Phosphate",null,0]
[null,"BLELHAM TARN AND BOG","Lake","Phosphate",null,0]
[null,"Blithfield Reservoir","Lake","Phosphate",null,0]
[null,"Bough Beech Reservoir","Lake","Phosphate",null,0]
[null,"BRADGATE PARK & CROPSTON RESERVOIR","Lake","Phosphate",null,0]
[null,"Burrator Reservoir","Lake","Phosphate",null,0]
[null,"Chew Valley Lake","Lake","Phosphate",null,0]
[null,"Colt Crag Reservoir","Lake","Phosphate",null,0]
[null,"COMBER MERE","Lake","Phosphate",null,0]
[null,"Darwell Reservoir","Lake","Phosphate",null,0]
[null,"Draycote Water","Lake","Phosphate",null,0]
[null,"Eccup Reservoir","Lake","Phosphate",null,0]
[null,"ESTHWAITE WATER","Lake","Phosphate",null,0]
[null,"Foremark Reservoir","Lake","Phosphate",null,0]
[null,"Grafham Water","Lake","Phosphate",null,0]
[null,"Great Lake or Wellbeck","Lake","Phosphate",null,0]
[null,"Hanningfield Reservoir","Lake","Phosphate",null,0]
[null,"LEIGHTON MOSS AND HAWES WATER","Lake","Phosphate",null,0]
[null,"Loe Pool","Lake","Phosphate",null,0]
[null,"Loweswater","Lake","Phosphate",null,0]
[null,"Ogston Reservoir","Lake","Phosphate",null,{"$f":"SUM(E764/E$3)*100","v":0}]
[null,"Pitsford Water","Lake","Phosphate",null,0]
[null,"Queen Mary Reservoir","Lake","Phosphate",null,0]
[null,"Rivington Reservoirs","Lake","Phosphate",null,0]
[null,"ROSTHERNE MERE, THE MERE and TABLEY MERE","Lake","Phosphate",null,0]
[null,"Rudyard Reservoir","Lake","Phosphate",null,0]
[null,"Rutland Water","Lake","Phosphate",null,0]
[null,"Siblyback Lake","Lake","Phosphate",null,0]
[null,"Slapton Ley","Lake","Phosphate",null,0]
[null,"Stithians Reservoir","Lake","Phosphate",null,0]
[null,"Stocks Reservoir","Lake","Phosphate",null,0]
[null,"Stodmarsh Nature Reserve Pool","Lake","Phosphate",null,0]
[null,"Sutton Bingham Reservoir","Lake","Phosphate",null,0]
[null,"TATTON MERES","Lake","Phosphate",null,0]
[null,"The Flash or Pennington Flash","Lake","Phosphate",null,0]
[null,"Thrapston Lake","Lake","Phosphate",null,0]
[null,"Tittesworth Reservoir","Lake","Phosphate",null,0]
[null,"Ullswater","Lake","Phosphate",null,0]
[null,"UPPER THURNE BROADS & MARSHES","Lake","Phosphate",null,0]
[null,"Weir Wood Reservoir","Lake","Phosphate",null,0]
[null,"Windermere","Lake","Phosphate",null,0]
[null,"YARE BROADS & MARSHES","Lake","Phosphate",null,0]
[]
[null,"August 2013 DWP Plans - SSSI Lakes with Nitrate Risk (LNSSSIID)"]
[null,"Name","Land Draining to, or within, WFD Protected Area or GES Failure","Failing or \"At Risk\" Element"]
[null,"AQUALATE MERE","SSSI Lake","Nitrate",null,0]
[null,"BARNBY BROAD & MARSHES","SSSI Lake","Nitrate",null,0]
[null,"HATCH MERE","SSSI Lake","Nitrate",null,0]
[null,"Loe Pool","SSSI Lake","Nitrate",null,0]
[null,"PETTYPOOL BROOK VALLEY","SSSI Lake","Nitrate",null,0]
[null,"Slapton Ley","SSSI Lake","Nitrate",null,0]
[null,"SWEAT MERE AND CROSE MERE","SSSI Lake","Nitrate",null,0]
[null,"UPPER THURNE BROADS & MARSHES","SSSI Lake","Nitrate",null,0]
[null,"YARE BROADS & MARSHES","SSSI Lake","Nitrate",null,0]
[]
[null,"August 2013 DWP Plans - N2K Lakes with Nitrate Risk (LPN2KID)"]
[null,"Name","Land Draining to, or within, WFD Protected Area or GES Failure","Failing or \"At Risk\" Element"]
[null,"ABBOTS MOSS","Natura 2000 Lake","Phosphate",null,0]
[null,"BARNBY BROAD & MARSHES","Natura 2000 Lake","Phosphate",null,0]
[null,"BASSENTHWAITE LAKE","Natura 2000 Lake","Phosphate",null,0]
[null,"EBBLAKE BOG","Natura 2000 Lake","Phosphate",null,0]
[null,"HORNSEA MERE","Natura 2000 Lake","Phosphate",null,0]
[null,"LEIGHTON MOSS AND HAWES WATER","Natura 2000 Lake","Phosphate",null,0]
[null,"UPPER THURNE BROADS & MARSHES","Natura 2000 Lake","Phosphate",null,0]
[null,"WHITE MERE","Natura 2000 Lake","Phosphate",null,0]
[null,"YARE BROADS & MARSHES","Natura 2000 Lake","Phosphate",null,0]
[]
[null,"August 2013 DWP Plans - N2K Lakes with Nitrate Risk (LNN2KID)"]
[null,"Name","Land Draining to, or within, WFD Protected Area or GES Failure","Failing or \"At Risk\" Element"]
[null,"BARNBY BROAD & MARSHES","Natura 2000 Lake","Nitrate",null,0]
[null,"UPPER THURNE BROADS & MARSHES","Natura 2000 Lake","Nitrate",null,0]
[null,"YARE BROADS & MARSHES","Natura 2000 Lake","Nitrate",null,0]
[]
[null,"August 2013 DWP Plans - N2K Rivers (RVN2KID)"]
[null,"Name","Land Draining to, or within, WFD Protected Area or GES Failure","Failing or \"At Risk\" Element"]
[null,"BOURNE VALLEY","Natura 2000 River","Phosphate",null,0]
[null,"CANFORD HEATH","Natura 2000 River","Phosphate",null,0]
[null,"HAMPSHIRE AVON SYSTEM","Natura 2000 River","Phosphate",null,0]
[null,"HOLT & WEST MOORS HEATHS","Natura 2000 River","Phosphate",null,0]
[null,"HOLTON & SANDFORD HEATHS","Natura 2000 River","Phosphate",null,0]
[null,"MINSMERE-WALBERSWICK HEATHS & MARSHES","Natura 2000 River","Phosphate",null,0]
[null,"MOORS RIVER SYSTEM","Natura 2000 River","Phosphate",null,0]
[null,"OUSE WASHES","Natura 2000 River","Phosphate",null,0]
[null,"PARLEY COMMON","Natura 2000 River","Phosphate",null,0]
[null,"RIVER AXE","Natura 2000 River","Phosphate",null,{"$f":"SUM(E828/E$3)*100","v":0}]
[null,"RIVER CAMEL VALLEY & TRIBUTARIES","Natura 2000 River","Phosphate",null,0]
[null,"RIVER DEE (ENGLAND)","Natura 2000 River","Phosphate",null,0]
[null,"RIVER DERWENT","Natura 2000 River","Phosphate",null,0]
[null,"RIVER DERWENT (CUMBRIA)","Natura 2000 River","Phosphate",null,0]
[null,"RIVER EDEN & TRIBUTARIES","Natura 2000 River","Phosphate",null,0]
[null,"River Ehen","Natura 2000 River","Phosphate",null,0]
[null,"River Itchen","Natura 2000 River","Phosphate",null,0]
[null,"RIVER KENNET","Natura 2000 River","Phosphate",null,0]
[null,"River Kent and Tribs","Natura 2000 River","Phosphate",null,0]
[null,"RIVER LUGG","Natura 2000 River","Phosphate",null,0]
[null,"RIVER MEASE","Natura 2000 River","Phosphate",null,0]
[null,"RIVER TEME","Natura 2000 River","Phosphate",null,0]
[null,"RIVER WENSUM","Natura 2000 River","Phosphate",null,0]
[null,"RIVER WYE","Natura 2000 River","Phosphate",null,0]
[null,"SHALLAM DYKE MARSHES, THURNE","Natura 2000 River","Phosphate",null,0]
[null,"SLOP BOG & UDDENS HEATH","Natura 2000 River","Phosphate",null,0]
[null,"SOMERSET LEVELS AND MOORS","Natura 2000 River","Phosphate",null,0]
[null,"Tweed catchment - English rivers","Natura 2000 River","Phosphate",null,0]
[null,"UPTON HEATH","Natura 2000 River","Phosphate",null,0]
[null,"WYE VALLEY","Natura 2000 River","Phosphate",null,0]
[]
[null,"August 2013 DWP Plans - SSSI Rivers (RVSSSIID)"]
[null,"Name","Land Draining to, or within, WFD Protected Area or GES Failure","Failing or \"At Risk\" Element"]
[null,"BOURNE VALLEY","SSSI River","Nitrate",null,0]
[null,"CANFORD HEATH","SSSI River","Nitrate",null,0]
[null,"CHESTERFIELD CANAL","SSSI River","Nitrate",null,0]
[null,"COTSWOLD WATER PARK","SSSI River","Nitrate",null,0]
[null,"GRANTHAM CANAL","SSSI River","Nitrate",null,0]
[null,"HAMPSHIRE AVON SYSTEM","SSSI River","Nitrate",null,0]
[null,"HATFIELD CHASE DITCHES","SSSI River","Nitrate",null,0]
[null,"HOLT & WEST MOORS HEATHS","SSSI River","Nitrate",null,0]
[null,"HOLTON & SANDFORD HEATHS","SSSI River","Nitrate",null,0]
[null,"HUNSDON MEAD","SSSI River","Nitrate",null,0]
[null,"MINSMERE-WALBERSWICK HEATHS & MARSHES","SSSI River","Nitrate",null,0]
[null,"MONTGOMERY CANAL, ASTON LOCKS-KEEPER'S BRIDGE","SSSI River","Nitrate",null,0]
[null,"MOORS RIVER SYSTEM","SSSI River","Nitrate",null,0]
[null,"OUSE WASHES","SSSI River","Nitrate",null,0]
[null,"PARLEY COMMON","SSSI River","Nitrate",null,0]
[null,"RIVER AXE","SSSI River","Nitrate",null,0]
[null,"RIVER BEULT","SSSI River","Nitrate",null,0]
[null,"RIVER BLYTHE","SSSI River","Nitrate",46281.619343120001,32.268857380700247]
[null,"RIVER CAMEL VALLEY & TRIBUTARIES","SSSI River","Nitrate",null,0]
[null,"River Coquet & Coquet Valley Woodlands (SSSI)","SSSI River","Nitrate",null,0]
[null,"RIVER DEE (ENGLAND)","SSSI River","Nitrate",null,0]
[null,"RIVER DERWENT","SSSI River","Nitrate",null,0]
[null,"RIVER DERWENT (CUMBRIA)","SSSI River","Nitrate",null,0]
[null,"RIVER EDEN & TRIBUTARIES","SSSI River","Nitrate",null,0]
[null,"River Ehen","SSSI River","Nitrate",null,0]
[null,"RIVER EYE","SSSI River","Nitrate",null,0]
[null,"RIVER HULL HEADWATERS","SSSI River","Nitrate",null,0]
[null,"RIVER ISE & MEADOWS","SSSI River","Nitrate",null,0]
[null,"River Itchen","SSSI River","Nitrate",null,0]
[null,"RIVER KENNET","SSSI River","Nitrate",null,0]
[null,"River Kent and Tribs","SSSI River","Nitrate",null,0]
[null,"RIVER LUGG","SSSI River","Nitrate",null,0]
[null,"RIVER MEASE","SSSI River","Nitrate",null,0]
[null,"RIVER NAR","SSSI River","Nitrate",null,0]
[null,"RIVER TEME","SSSI River","Nitrate",null,0]
[null,"River Test","SSSI River","Nitrate",null,0]
[null,"RIVER WENSUM","SSSI River","Nitrate",null,0]
[null,"RIVER WYE","SSSI River","Nitrate",null,0]
[null,"RODING VALLEY MEADOWS","SSSI River","Nitrate",null,0]
[null,"SHALLAM DYKE MARSHES, THURNE","SSSI River","Nitrate",null,0]
[null,"SLOP BOG & UDDENS HEATH","SSSI River","Nitrate",null,{"$f":"SUM(E892/E$3)*100","v":0}]
[null,"SOMERSET LEVELS AND MOORS","SSSI River","Nitrate",null,0]
[null,"STOVER PARK","SSSI River","Nitrate",null,0]
[null,"TICKENHAM, NAILSEA & KENN MOORS","SSSI River","Nitrate",null,0]
[null,"Tweed catchment - English rivers","SSSI River","Nitrate",null,0]
[null,"UPTON HEATH","SSSI River","Nitrate",null,0]
[null,"WYE VALLEY","SSSI River","Nitrate",null,0]
[]
[null,"2013 Reasons for Failure Database - Lakes (RIVGESP)"]
[null,"Name","Land Draining to, or within, WFD Protected Area or GES Failure","Failing or \"At Risk\" Element"]
[null,"Aire from River Calder to River Ouse - WBID:GB104027062760","River","Phosphate",null,0]
[null,"Alconbury & Brampton Brooks - WBID:GB105033042790","River","Phosphate",null,0]
[null,"Ancholme from Bishopbridge to the Humber - WBID:GB104029067520","River","Phosphate",null,0]
[null,"AXE - WBID:GB108045008870","River","Phosphate",null,0]
[null,"Belford Burn from Source to Ross Low - WBID:GB103022076460","River","Phosphate",null,0]
[null,"Bell Water Drain - WBID:GB105030056430","River","Phosphate",null,0]
[null,"Beult - WBID:GB106040018270","River","Phosphate",null,0]
[null,"Birk Lane Drain Catch (trib of Derwent) - WBID:GB104027063430","River","Phosphate",null,0]
[null,"Black Ditch - WBID:GB107041012890","River","Phosphate",null,0]
[null,"Bottesford Beck Catchment (trib of R Trent) - WBID:GB104028064290","River","Phosphate",null,0]
[null,"Brookhouse Brook - WBID:GB106037028150","River","Phosphate",null,0]
[null,"CAEN - WBID:GB108050020010","River","Phosphate",null,0]
[null,"CAREY - WBID:GB108047008040","River","Phosphate",null,0]
[null,"Cawthorne Dyke from Silkstone Beck to River Dearne - WBID:GB104027057580","River","Phosphate",null,0]
[null,"Cherwell (Source to Trafford Bridge) - WBID:GB106039042650","River","Phosphate",null,0]
[null,"Chil and Limb Brooks (source to B4044) - WBID:GB106039030310","River","Phosphate",null,0]
[null,"Cinderford Bk conf Blackpool Bk to Severn Estuary - WBID:GB109054032560","River","Phosphate",null,0]
[null,"CLYST - WBID:GB108045008860","River","Phosphate",null,0]
[null,"Cole (Bower Bridge to Thames) including Coleshill - WBID:GB106039023730","River","Phosphate",null,0]
[null,"Colne - WBID:GB105037041330","River","Phosphate",null,0]
[null,"Costa Beck from Source to Pickering Beck - WBID:GB104027068480","River","Phosphate",null,0]
[null,"Cowfold Stream - WBID:GB107041012260","River","Phosphate",null,0]
[null,"Cripsey Brook (bottom section) - WBID:GB106037033470","River","Phosphate",null,0]
[null,"Cut (Ascot to Bull Brook confluence at Warfield) - WBID:GB106039023440","River","Phosphate",null,0]
[null,"DALCH - WBID:GB108050014650","River","Phosphate",null,0]
[null,"Daniel's Bk - source to conf R Severn Estuary - WBID:GB109054032680","River","Phosphate",null,0]
[null,"Dearne from Bentley Brook to Cawthorne Dyke - WBID:GB104027063260","River","Phosphate",null,0]
[null,"Deben - WBID:GB105035046160","River","Phosphate",null,0]
[null,"Dimore Bk - source to conf R Severn Estuary - WBID:GB109054032660","River","Phosphate",null,0]
[null,"Ea Beck from Abbess Dyke to River Don - WBID:GB104027063210","River","Phosphate",null,0]
[null,"Ea Beck from Frickley Beck to the Skell - WBID:GB104027063200","River","Phosphate",null,0]
[null,"Earl Soham Watercourse - WBID:GB105035046210","River","Phosphate",null,0]
[null,"East Looe River - WBID:GB108048001440","River","Phosphate",null,0]
[null,"Eden at Bough Beech - WBID:GB106040018160","River","Phosphate",null,0]
[null,"Elstow Brook - WBID:GB105033038050","River","Phosphate",null,0]
[null,"Evenlode (Glyme to Thames) - WBID:GB106039029880","River","Phosphate",null,0]
[null,"EXE - WBID:GB108045009040","River","Phosphate",null,0]
[null,"Fordyke Stream from Lambwith Dr to Holderness Dr - WBID:GB104026066830","River","Phosphate",null,0]
[null,"Foulness from Black Beck to Market Weighton Canal - WBID:GB104026066690","River","Phosphate",null,0]
[null,"Great Hallingbury Brook - WBID:GB106038033330","River","Phosphate",null,0]
[null,"Hampshire Avon (Lower) - WBID:GB108043015840","River","Phosphate",null,0]
[null,"Holton Brook and tributaries - WBID:GB106039030360","River","Phosphate",null,0]
[null,"Ingrebourne - WBID:GB106037028130","River","Phosphate",null,0]
[null,"Ivel - WBID:GB105033038170","River","Phosphate",null,0]
[null,"KEWARD BROOK - WBID:GB108052021240","River","Phosphate",null,0]
[null,"KINGS SEDGEMOOR DRAIN - WBID:GB108052021150","River","Phosphate",null,0]
[null,"Kingsey Cuttle Brook and tributaries at Thame - WBID:GB106039030200","River","Phosphate",null,0]
[null,"Kingsley Stream - WBID:GB106039017740","River","Phosphate",null,0]
[null,"Laughton Drain from Source to River Trent - WBID:GB104028058120","River","Phosphate",null,0]
[null,"Letton Lake Bk - source to conf R Wye - WBID:GB109055037120","River","Phosphate",null,0]
[null,"Ley Bk - source to R Severn Estuary - WBID:GB109054032740","River","Phosphate",null,0]
[null,"Loddon - WBID:GB106039023190","River","Phosphate",null,0]
[null,"Loddon (Sherfield on Loddon to Swallowfield) - WBID:GB106039017330","River","Phosphate",null,0]
[null,"Lower Rother from Robertsbridge to Iden - WBID:GB107040013640","River","Phosphate",null,0]
[null,"Lower Stour - WBID:GB105036041000","River","Phosphate",null,{"$f":"SUM(E956/E$3)*100","v":0}]
[null,"Lower Witham - WBID:GB105030062420","River","Phosphate",null,0]
[null,"Many Brooks - WBID:GB112071065280","River","Phosphate",null,0]
[null,"Mardyke - WBID:GB106037028200","River","Phosphate",null,0]
[null,"Mersey (Man.Ship Canal, Irlam to Howley Weir) - WBID:GB112069061010","River","Phosphate",null,0]
[null,"Moreton Bk - source to conf R Lugg - WBID:GB109055037180","River","Phosphate",null,0]
[null,"Nene - WBID:GB105032050381","River","Phosphate",null,0]
[null,"North Low from Berrington Burn to N Sea - WBID:GB103021073240","River","Phosphate",null,0]
[null,"Nunningham Stream - WBID:GB107041012610","River","Phosphate",null,0]
[null,"Ock and tributaries (Land Brook confluence to Tham - WBID:GB106039023430","River","Phosphate",null,0]
[null,"Old Howe from Pitwherry Closes to Froddingham Bk - WBID:GB104026067070","River","Phosphate",null,0]
[null,"Ouse from Cockhaise Brook confluence to Spithurst - WBID:GB107041012710","River","Phosphate",null,0]
[null,"Oxon Ray (upstream A41 to Cherwell) including Otmo - WBID:GB106039030090","River","Phosphate",null,0]
[null,"PARRETT - WBID:GB108052015470","River","Phosphate",null,0]
[null,"Paupers Drain Catchment (trib of Trent) - WBID:GB104028064300","River","Phosphate",null,0]
[null,"Peckmill Brook, Hoolpool Gutter at Ince Marshes. - WBID:GB112068060330","River","Phosphate",null,0]
[null,"PIDDLE (Lower) - WBID:GB108044010080","River","Phosphate",null,0]
[null,"Pocklington Beck from Bielby Bk to River Derwent - WBID:GB104027063440","River","Phosphate",null,0]
[null,"PONT PILL - WBID:GB108048001340","River","Phosphate",null,0]
[null,"Pow Beck - WBID:GB112074069990","River","Phosphate",null,0]
[null,"Pulford Brook - WBID:GB111067052130","River","Phosphate",null,0]
[null,"Quin - WBID:GB106038040120","River","Phosphate",null,0]
[null,"R Frome - Slad Bk to R Severn - WBID:GB209054032450","River","Phosphate",null,0]
[null,"R Leadon - Glynch Bk to conf R Severn (W Channel) - WBID:GB109054032510","River","Phosphate",null,0]
[null,"R Little Lugg - near Wyatt Fm to conf R Lugg - WBID:GB109055036720","River","Phosphate",null,0]
[null,"R Little Lugg - source to near Wyatt Fm - WBID:GB109055036730","River","Phosphate",null,0]
[null,"R Severn - conf R Avon to conf Upper Parting - WBID:GB109054044404","River","Phosphate",76881.115950576539,53.603694103391973]
[null,"R Severn (E Channel) - Horsebere Bk to Severn Est - WBID:GB109054032750","River","Phosphate",null,0]
[null,"R Torne / Three Rivers from Mother Dr to R Trent - WBID:GB104028064340","River","Phosphate",null,0]
[null,"R Trent from Carlton-on-Trent to Laughton Drain - WBID:GB104028058480","River","Phosphate",83115.169442856,57.950252972791738]
[null,"R. Arun Horsham - WBID:GB107041012310","River","Phosphate",null,0]
[null,"REEDY BROOK - WBID:GB108046008590","River","Phosphate",null,0]
[null,"River Adur East (Sakeham) - WBID:GB107041012900","River","Phosphate",null,0]
[null,"River Annas - WBID:GB112074069720","River","Phosphate",null,0]
[null,"River Blackwater - WBID:GB105037041160","River","Phosphate",null,0]
[null,"River Chelmer - WBID:GB105037033530","River","Phosphate",null,0]
[null,"River Chet - WBID:GB105034051190","River","Phosphate",null,0]
[null,"River Derwent - WBID:GB112075070520","River","Phosphate",null,0]
[null,"River Douglas - WBID:GB112070064820","River","Phosphate",null,0]
[null,"River Dove from Hodge Beck to River Rye - WBID:GB104027068190","River","Phosphate",null,0]
[null,"River Eamont (Lower) - WBID:GB102076070990","River","Phosphate",null,0]
[null,"River Eau from Kirton Lindsey Trib to R Trent - WBID:GB104028058000","River","Phosphate",null,0]
[null,"River Ellen (lower) - WBID:GB112075073640","River","Phosphate",null,0]
[null,"River Gipping - WBID:GB105035046280","River","Phosphate",null,0]
[null,"River Gowy and tribs (Source to Milton Brook) - WBID:GB112068060280","River","Phosphate",null,0]
[null,"River Idle from River Ryton to River Trent - WBID:GB104028058110","River","Phosphate",null,0]
[null,"River Otter - WBID:GB108045009170","River","Phosphate",null,0]
[null,"River Petteril d/s Blackrack Beck - WBID:GB102076074030","River","Phosphate",null,0]
[null,"River Ribble - WBID:GB112071065500","River","Phosphate",null,0]
[null,"River Swale/Ouse from Wiske to Naburn - WBID:GB104027069590","River","Phosphate",null,0]
[null,"River Tamar (River Ottery to River Deer) - WBID:GB108047008030","River","Phosphate",null,0]
[null,"RIVER TORRIDGE - WBID:GB108050013930","River","Phosphate",null,0]
[null,"River Wampool (bottom) - WBID:GB102075073510","River","Phosphate",null,0]
[null,"River Waveney - WBID:GB105034045900","River","Phosphate",null,0]
[null,"River Weaver (Dane to Frodsham) - WBID:GB112068060500","River","Phosphate",null,0]
[null,"River Yarrow - WBID:GB112070064870","River","Phosphate",null,0]
[null,"Roe Beck (Lower) - WBID:GB102076073770","River","Phosphate",null,0]
[null,"Rushyford Beck from Source to Woodham Burn - WBID:GB103025072450","River","Phosphate",null,0]
[null,"Sands/Keyingham/Roos Dr from Source to Humber - WBID:GB104026067230","River","Phosphate",null,0]
[null,"Savick Brook - WBID:GB112071065470","River","Phosphate",null,0]
[null,"Scotsgrove Brook (upstream Kingsey Cuttle Brook) - WBID:GB106039030270","River","Phosphate",null,0]
[null,"Scout Dyke from Source to River Don - WBID:GB104027057530","River","Phosphate",null,0]
[null,"Selby Dam from Conf. Fox Dike & Carr Dike to Ouse - WBID:GB104027063620","River","Phosphate",null,0]
[null,"SHEPPEY - WBID:GB108052021170","River","Phosphate",null,0]
[null,"Skerne from Source to Carrs - WBID:GB103025076070","River","Phosphate",null,{"$f":"SUM(E1020/E$3)*100","v":0}]
[null,"Slea New - WBID:GB105030056670","River","Phosphate",null,0]
[null,"Staithes Beck from Source to Newton Beck - WBID:GB104027068770","River","Phosphate",null,0]
[null,"Stiffkey - WBID:GB105034055840","River","Phosphate",null,0]
[null,"STOGURSEY BK - WBID:GB108052021340","River","Phosphate",null,0]
[null,"Stort (Stanstead Brook to Farnham Brook) - WBID:GB106038033340","River","Phosphate",null,0]
[null,"STOUR (Lower) - WBID:GB108043011040","River","Phosphate",null,0]
[null,"Sud Bk - source to conf R Severn Estuary - WBID:GB109054032700","River","Phosphate",null,0]
[null,"Tarra Carr Gutter - WBID:GB112070064900","River","Phosphate",null,0]
[null,"Ten Mile River - WBID:GB105033047850","River","Phosphate",null,0]
[null,"Thame (Aylesbury to Scotsgrove Brook) - WBID:GB106039030370","River","Phosphate",null,0]
[null,"Thames (Churn to Coln) - WBID:GB106039022990","River","Phosphate",null,0]
[null,"Thistleton Brook - WBID:GB112072066110","River","Phosphate",null,0]
[null,"Thurne - WBID:GB105034051360","River","Phosphate",null,0]
[null,"Upper Great Stour - WBID:GB107040019660","River","Phosphate",null,0]
[null,"Wadley Stream (Source to Thames at Duxford) - WBID:GB106039023770","River","Phosphate",null,0]
[null,"WAGAFORD WATER - WBID:GB108050008210","River","Phosphate",null,0]
[null,"Wbury Bk - source to mouth - WBID:GB109054032770","River","Phosphate",null,0]
[null,"Welland - WBID:GB105031050680","River","Phosphate",null,0]
[null,"Went from Blowell Drain to the River Don - WBID:GB104027064260","River","Phosphate",null,0]
[null,"Wey - WBID:GB106039017710","River","Phosphate",null,0]
[null,"Wey- WBID:GB106039017710","River","Phosphate",null,0]
[null,"Willersley Bk - source to conf R Wye - WBID:GB109055037070","River","Phosphate",null,0]
[null,"Winestead Drain from Source to Humber - WBID:GB104026066570","River","Phosphate",null,0]
[null,"Withington Marsh Bk - source to conf R Little Lugg - WBID:GB109055036710","River","Phosphate",null,0]
[null,"Woldgrift Drain - WBID:GB105029061750","River","Phosphate",null,0]
[null,"Woodplumpton Brook - WBID:GB112072065760","River","Phosphate",null,0]
[null,"WOOLLEIGH BROOK - WBID:GB108050014300","River","Phosphate",null,0]
[null,"Worminghall Brook and tributaries - WBID:GB106039030340","River","Phosphate",null,0]
[null,"Worthenbury Brook - lower - WBID:GB111067052090","River","Phosphate",null,0]
[null,"Worton Str - source to conf Semington Bk - WBID:GB109053022210","River","Phosphate",null,0]
[null,"Yare - WBID:GB105034051280","River","Phosphate",null,0]
[]
[null,"2013 Reasons for Failure Database - Rivers (RIVGESSed)"]
[null,"Name","Land Draining to, or within, WFD Protected Area or GES Failure","Failing or \"At Risk\" Element"]
[null,"Aldbrough Beck from Forcett Park Catch to Clow Bk - WBID:GB103025072060","River","Sediment",null,0]
[null,"Alde - WBID:GB105035046060","River","Sediment",null,0]
[null,"Aln from Callaly Burn to Coe Burn - WBID:GB103022076310","River","Sediment",null,0]
[null,"Also includes Clatter Brook. - WBID:GB112068060270","River","Sediment",null,0]
[null,"Arrowe Brook and The Fender also included. - WBID:GB112068060530","River","Sediment",null,0]
[null,"Atherfield Stream - WBID:GB107101005920","River","Sediment",null,0]
[null,"Babingley River - WBID:GB105033047620","River","Sediment",null,0]
[null,"Badsey Bk - conf Bretforton Bk to conf R Avon - WBID:GB109054039400","River","Sediment",null,0]
[null,"Barlow Brook from Source to River Drone - WBID:GB104027057700","River","Sediment",null,0]
[null,"BATHERM - WBID:GB108045015070","River","Sediment",null,0]
[null,"Beane (from confluence with Stevenage Brook to Lee - WBID:GB106038033310","River","Sediment",null,0]
[null,"Belchamp Brook - WBID:GB105036040710","River","Sediment",null,0]
[null,"Belstead Brook - WBID:GB105035040440","River","Sediment",null,0]
[null,"Billingham Beck, Bishopton Beck to Brierley Beck - WBID:GB103025072360","River","Sediment",null,0]
[null,"Birkin Brook - WBID:GB112069061340","River","Sediment",null,0]
[null,"BLACKATON BROOK - WBID:GB108046008580","River","Sediment",null,0]
[null,"Blackfoss Bk lower Catch (trib of Pocklington Bk) - WBID:GB104027063460","River","Sediment",null,0]
[null,"Blackwater Drain - WBID:GB105034051120","River","Sediment",null,0]
[null,"Blyth - WBID:GB105035046040","River","Sediment",null,0]
[null,"Bodenham Bk - source to conf R Lugg - WBID:GB109055036740","River","Sediment",null,0]
[null,"BOLESBRIDGE WATER - WBID:GB108047007800","River","Sediment",null,0]
[null,"Brierdene Burn from Source to North Sea - WBID:GB103022076180","River","Sediment",null,0]
[null,"Brimfield Bk - source to conf R Teme - WBID:GB109054044420","River","Sediment",null,0]
[null,"BRUE - WBID:GB108052021260","River","Sediment",null,0]
[null,"BUDLEIGH BROOK - WBID:GB108045009140","River","Sediment",null,0]
[null,"Bumpstead Brook - WBID:GB105036040910","River","Sediment",null,0]
[null,"Burlington Bk - source to conf Neachley Bk - WBID:GB109054050080","River","Sediment",null,0]
[null,"BURN (EXE) - WBID:GB108045014870","River","Sediment",null,0]
[null,"Bushley Bk - conf MarlBank Bk to conf R Severn - WBID:GB109054039660","River","Sediment",null,0]
[null,"Bydemill Brook (Source to Thames) - WBID:GB106039023710","River","Sediment",null,{"$f":"SUM(E1084/E$3)*100","v":0}]
[null,"Caebitra Bk - source to conf R Camlad - WBID:GB109054044860","River","Sediment",null,0]
[null,"CAREY - WBID:GB108047008040","River","Sediment",null,0]
[null,"Carr Brook - WBID:GB112070064890","River","Sediment",null,0]
[null,"Castle Eden Burn from Source to North Sea - WBID:GB103025075930","River","Sediment",null,0]
[null,"Catchwater Drain catchnemt (trib of Trent) - WBID:GB104028058350","River","Sediment",null,0]
[null,"Causewayhead (Wath) Beck - WBID:GB102075073470","River","Sediment",null,0]
[null,"Cavenham Stream - WBID:GB105033043000","River","Sediment",null,0]
[null,"Cawthorne Dyke from Source to Silkstone Beck - WBID:GB104027063150","River","Sediment",null,0]
[null,"CHAR - WBID:GB108044009790","River","Sediment",null,0]
[null,"Cheaton Bk - source to conf R Lugg - WBID:GB109055041950","River","Sediment",null,0]
[null,"Chertsey Bourne (Chertsey to River Thames confluen - WBID:GB106039017030","River","Sediment",null,0]
[null,"Cherwell (Source to Trafford bridge) - WBID:GB106039042650","River","Sediment",null,0]
[null,"Childrey Brook and tributaries - WBID:GB106039023370","River","Sediment",null,0]
[null,"Church Eaton Brook from Source to Whiston Brook - WBID:GB104028046780","River","Sediment",null,0]
[null,"CLAW - WBID:GB108047008060","River","Sediment",null,0]
[null,"Clipstone Brook - WBID:GB105033037830","River","Sediment",null,0]
[null,"CLYST - WBID:GB108045008750","River","Sediment",null,0]
[null,"Cobbins Brook - WBID:GB106038033190","River","Sediment",null,0]
[null,"Colne (upper stretch, Hatfield to confluence with - WBID:GB106039029820","River","Sediment",null,0]
[null,"CORRY BROOK - WBID:GB108045009300","River","Sediment",null,0]
[null,"Costa Beck from Pickering Beck to River Rye - WBID:GB104027068410","River","Sediment",null,0]
[null,"CREEDY - WBID:GB108045014910","River","Sediment",null,0]
[null,"Crookhurst Beck - WBID:GB112075073660","River","Sediment",null,0]
[null,"Crummock Beck - WBID:GB102075073400","River","Sediment",null,0]
[null,"Cut (Binfield to River Thames confluence) and Maid - WBID:GB106039023510","River","Sediment",null,0]
[null,"DALCH - WBID:GB108050014650","River","Sediment",null,0]
[null,"DART (EXE) - WBID:GB108045015010","River","Sediment",null,0]
[null,"DEER - WBID:GB108047013880","River","Sediment",null,0]
[null,"Doe Lea from Hawke Brook to Pools Brook - WBID:GB104027057300","River","Sediment",null,0]
[null,"Dowles Bk - source to conf R Severn - WBID:GB109054044560","River","Sediment",null,0]
[null,"Downholland (Lydiate/Cheshires Lines) Brook - WBID:GB112069060640","River","Sediment",null,0]
[null,"Dry Beck (Hall Burn) - WBID:GB102077074160","River","Sediment",null,0]
[null,"Duddel Brook - WBID:GB112071065700","River","Sediment",null,0]
[null,"Ea Beck from Abbess Dyke to River Don - WBID:GB104027063210","River","Sediment",null,0]
[null,"Ea Beck from Frickley Beck to the Skell - WBID:GB104027063200","River","Sediment",null,0]
[null,"Earby Beck from Langber Beck to River  Aire - WBID:GB104027063000","River","Sediment",null,0]
[null,"Earl Soham Watercourse - WBID:GB105035046210","River","Sediment",null,0]
[null,"East Ruston Stream - WBID:GB105034055670","River","Sediment",null,0]
[null,"Eastburn Beck from Lothersdale Beck to River Aire - WBID:GB104027062960","River","Sediment",null,0]
[null,"Eggington Brook (lower)  trib of R Trent - WBID:GB104028053170","River","Sediment",null,0]
[null,"Eller Beck - WBID:GB112074070050","River","Sediment",null,0]
[null,"Elmbridge Bk - source to conf R Salwarpe - WBID:GB109054044220","River","Sediment",728.73186049900005,0.50809251726647409]
[null,"Elmley Castle - source to conf R Avon - WBID:GB109054039390","River","Sediment",null,0]
[null,"Erme (Tidal) - WBID:GB108046005070","River","Sediment",null,0]
[null,"Evenlode (Bledington to Glyme confluence) - WBID:GB106039029960","River","Sediment",null,0]
[null,"Fordyke Stream from Lambwith Dr to Holderness Dr - WBID:GB104026066830","River","Sediment",null,0]
[null,"Frenze Beck - WBID:GB105034045840","River","Sediment",null,0]
[null,"Frome Dorset (Lower) & Furzebrook Stream - WBID:GB108044009690","River","Sediment",null,0]
[null,"Fynn - WBID:GB105035040330","River","Sediment",null,0]
[null,"Gaitle/Beck Burn - WBID:GB102077074180","River","Sediment",null,0]
[null,"Garren Bk - conf Gamber Bk to conf R Wye - WBID:GB109055029690","River","Sediment",null,0]
[null,"Gaunless from Hummer Beck to Wear - WBID:GB103024072730","River","Sediment",null,0]
[null,"Gilwern Bk - source to conf R Arrow - WBID:GB109055041830","River","Sediment",null,0]
[null,"Gipping - WBID:GB105035046180","River","Sediment",null,0]
[null,"Glaisdale Beck catchment (trib of Esk) - WBID:GB104027068070","River","Sediment",null,0]
[null,"Glaven - WBID:GB105034055780","River","Sediment",null,0]
[null,"Glenzier Burn - WBID:GB102077074260","River","Sediment",null,0]
[null,"Glyme (Dorn confluence to Evenlode) - WBID:GB106039029940","River","Sediment",null,0]
[null,"Greasbrough Dike from Source to River Don - WBID:GB104027057420","River","Sediment",null,0]
[null,"Greatham Creek Catchment (trib of Tidal Tees) - WBID:GB103025076030","River","Sediment",null,0]
[null,"Gunthorpe Stream - WBID:GB105034055770","River","Sediment",null,0]
[null,"Hampshire Avon (Lower) - WBID:GB108043015840","River","Sediment",null,0]
[null,"Hart Burn from Delf Burn to Wansbeck - WBID:GB103022077010","River","Sediment",null,0]
[null,"Harvington Bk - source to conf R Avon - WBID:GB109054039460","River","Sediment",null,{"$f":"SUM(E1148/E$3)*100","v":0}]
[null,"Hatfield Waste Dr  (trib of Torne/Three Rivs) - WBID:GB104028064330","River","Sediment",null,0]
[null,"Hayburn Beck/Thorny Beck catch (drains to N Sea) - WBID:GB104027068610","River","Sediment",null,0]
[null,"Henlow Brook - WBID:GB105033037770","River","Sediment",null,0]
[null,"Highfurlong Brook (Wormleighton to Cherwell) - WBID:GB106039037330","River","Sediment",null,0]
[null,"Holly Bk - source to conf Humber Bk - WBID:GB109055036800","River","Sediment",null,0]
[null,"HOLLY WATER - WBID:GB108045014900","River","Sediment",null,0]
[null,"Humber Bk - source to conf Holly Bk - WBID:GB109055041920","River","Sediment",null,0]
[null,"Hundred River - WBID:GB105035046260","River","Sediment",null,0]
[null,"Issey Brook (Camel) - WBID:GB108049000110","River","Sediment",null,0]
[null,"Ivel - WBID:GB105033037760","River","Sediment",null,0]
[null,"JACKMOOR BROOK - WBID:GB108045009080","River","Sediment",null,0]
[null,"Kempley Bk - source to conf R Leadon - WBID:GB109054039550","River","Sediment",null,0]
[null,"KEN STREAM - WBID:GB108045014880","River","Sediment",null,0]
[null,"KENN - WBID:GB108045009010","River","Sediment",null,0]
[null,"Kennet (Lambourn confluence to Enborne confluence) - WBID:GB106039017420","River","Sediment",null,0]
[null,"Kennet and Foudry Brook and Clayhill Brook in Read - WBID:GB106039023120","River","Sediment",null,0]
[null,"Killerby Beck Catchment (trib of Tees) - WBID:GB103025072300","River","Sediment",null,0]
[null,"King's Beck - WBID:GB105034055730","River","Sediment",null,0]
[null,"Kingsey Cuttle Brook and tributaries at Thame - WBID:GB106039030200","River","Sediment",null,0]
[null,"Kingston Brook Catchment (Trib of Soar) - WBID:GB104028046600","River","Sediment",null,0]
[null,"Knathorne Brook - WBID:GB108050008290","River","Sediment",null,0]
[null,"Knee Bk conf Blockley Bk to conf St Giles's Chapel - WBID:GB109054039840","River","Sediment",null,0]
[null,"Knoll Beck from Source to River Dearne - WBID:GB104027057470","River","Sediment",null,0]
[null,"Kyre Bk - source to conf R Teme - WBID:GB109054044410","River","Sediment",null,0]
[null,"Lacby Beck / River Freshney Catchment (to N Sea) - WBID:GB104029067530","River","Sediment",null,0]
[null,"Laddon Bk - source to conf R Frome (Brist) - WBID:GB109053027590","River","Sediment",null,0]
[null,"Langley Bk (and Westholme Bk) Sudburn Bk to Tees - WBID:GB103025072200","River","Sediment",null,0]
[null,"Lark - WBID:GB105035040360","River","Sediment",null,0]
[null,"Letton Lake Bk - source to conf R Wye - WBID:GB109055037120","River","Sediment",null,0]
[null,"Leven from Tame to River Tees - WBID:GB103025071880","River","Sediment",null,0]
[null,"Lilly Brook - WBID:GB108045009210","River","Sediment",null,0]
[null,"Limden - WBID:GB107040013610","River","Sediment",null,0]
[null,"Loddon (Sherfield on Loddon to Swallowfield) - WBID:GB106039017330","River","Sediment",null,0]
[null,"Long Whatton Brook Catchment (trib of Soar) - WBID:GB104028047170","River","Sediment",null,0]
[null,"Longton Brook - WBID:GB112070064970","River","Sediment",null,0]
[null,"Lower Enborne - WBID:GB106039017340","River","Sediment",null,0]
[null,"Lyne from Source to Tidal Limit - WBID:GB103022076820","River","Sediment",null,0]
[null,"Mackworth Brook from Source to Markeaton Brook - WBID:GB104028052840","River","Sediment",null,0]
[null,"Mardyke (East Tributary) - WBID:GB106037028070","River","Sediment",null,0]
[null,"Mardyke (West Tributary) - WBID:GB106037028040","River","Sediment",null,0]
[null,"Market Weighton Canal/Bk from Source to Humber - WBID:GB104026066710","River","Sediment",null,0]
[null,"Mendlesham Stream - WBID:GB105034045650","River","Sediment",null,0]
[null,"Mid River Ottery - WBID:GB108047007780","River","Sediment",null,0]
[null,"Mill Beck 2 (Ellerker Area) - WBID:GB104026066660","River","Sediment",null,0]
[null,"Mimram (from Welwyn to confluence with Lee) - WBID:GB106038033270","River","Sediment",null,0]
[null,"Noleham Bk - source to conf R Avon - WBID:GB109054039470","River","Sediment",null,0]
[null,"North and South Streams at Eastry - WBID:GB107040019730","River","Sediment",null,0]
[null,"North Burn from Source to Claxton Beck - WBID:GB103025072540","River","Sediment",null,0]
[null,"North Soak Drain (trib of R Torne / Three Rivers) - WBID:GB104028064350","River","Sediment",null,0]
[null,"Old Carr Stream - WBID:GB105033047820","River","Sediment",null,0]
[null,"Old Durham Beck from Chapman Beck to Wear - WBID:GB103024077470","River","Sediment",null,0]
[null,"Old Howe from Pitwherry Closes to Froddingham Bk - WBID:GB104026067070","River","Sediment",null,0]
[null,"Otterburn Beck from Source to River Aire - WBID:GB104027063090","River","Sediment",null,0]
[null,"Ouse - WBID:GB105033037920","River","Sediment",null,0]
[null,"Ouse Burn from Source to Tyne - WBID:GB103023075780","River","Sediment",null,0]
[null,"Ouse Still/fleet bk - Kelfield & Wharfe d/s Ryther - WBID:GB104027064280","River","Sediment",null,0]
[null,"Oxon Ray (upstream A41 to Cherwell) including Otmo - WBID:GB106039030090","River","Sediment",null,0]
[null,"Painswick Str - source to conf Slad Bk - WBID:GB109054032460","River","Sediment",null,0]
[null,"Penny Spot Beck - WBID:GB105034051010","River","Sediment",null,0]
[null,"PIDDLE (Lower) - WBID:GB108044010080","River","Sediment",null,0]
[null,"Pinsley Bk - source to conf R Lugg - WBID:GB109055041940","River","Sediment",null,0]
[null,"POLLY BROOK - WBID:GB108045008980","River","Sediment",null,0]
[null,"Pool Bk - ocnfluence Mere Bk to conf R Severn - WBID:GB109054039700","River","Sediment",null,0]
[null,"Pow Beck - WBID:GB112074069990","River","Sediment",null,{"$f":"SUM(E1212/E$3)*100","v":0}]
[null,"Pulford Brook - WBID:GB111067052130","River","Sediment",null,0]
[null,"R Avon (Warks) - conf R Sowe to conf R Leam - WBID:GB109054043840","River","Sediment",23650.724826199999,16.489955995463355]
[null,"R Camlad - source to conf Caebitra Bk - WBID:GB109054044910","River","Sediment",null,0]
[null,"R Corve - conf unnamed trib to conf Seifton Bk - WBID:GB109054044050","River","Sediment",null,0]
[null,"R Dore - source to conf Worm Bk - WBID:GB109055036870","River","Sediment",null,0]
[null,"R Frome - conf Tedstone Bk to conf R Lugg - WBID:GB109055036780","River","Sediment",null,0]
[null,"R Isbourne - conf Laverton Bk to conf R Avon - WBID:GB109054039630","River","Sediment",null,0]
[null,"R Little Lugg - near Wyatt Fm to conf R Lugg - WBID:GB109055036720","River","Sediment",null,0]
[null,"R Perry - conf Common Bk to conf Tetchill Bk - WBID:GB109054054970","River","Sediment",null,0]
[null,"R Swilgate - source to conf R Avon - WBID:GB109054039780","River","Sediment",null,0]
[null,"R Tern - conf R Roden to conf R Severn - WBID:GB109054049680","River","Sediment",null,0]
[null,"Rainford Brook - WBID:GB112069061240","River","Sediment",null,0]
[null,"Rattlesden River - WBID:GB105035046150","River","Sediment",null,0]
[null,"Rib (from confluence with Quin to Lee Navigation) - WBID:GB106038033360","River","Sediment",null,0]
[null,"Riccall Dam Catchment (trib of Ouse) - WBID:GB104027063690","River","Sediment",null,0]
[null,"Rigg Mill Bk/Long Mill Bk catch (trib of Esk) - WBID:GB104027068140","River","Sediment",null,0]
[null,"River Amber from Alfreton Brook to R Derwent - WBID:GB104028052330","River","Sediment",null,0]
[null,"River Annas - WBID:GB112074069720","River","Sediment",null,0]
[null,"River Bourne from Source to Didgeley Brook - WBID:GB104028042460","River","Sediment",2800.6339001259998,1.9526813707341601]
[null,"River Box - WBID:GB105036040920","River","Sediment",null,0]
[null,"River Cocker - WBID:GB112072065880","River","Sediment",null,0]
[null,"River Derwent from Troutsdale Beck to River Rye - WBID:GB104027067930","River","Sediment",null,0]
[null,"River Eau from Kirton Lindsey Trib to R Trent - WBID:GB104028058000","River","Sediment",null,0]
[null,"River Eden (lower) - WBID:GB102076073940","River","Sediment",null,0]
[null,"River Gilpin - WBID:GB112073071300","River","Sediment",null,0]
[null,"River Granta - WBID:GB105033037810","River","Sediment",null,0]
[null,"River Idle from River Ryton to River Trent - WBID:GB104028058110","River","Sediment",null,0]
[null,"River Lark - WBID:GB105033042940","River","Sediment",null,0]
[null,"River Loud - WBID:GB112071065340","River","Sediment",null,0]
[null,"River Lyne - WBID:GB102077074170","River","Sediment",null,0]
[null,"River Neet (Middle) - WBID:GB108049007270","River","Sediment",null,0]
[null,"River Rhee - WBID:GB105033038100","River","Sediment",null,0]
[null,"River Rye from Holbeck to River Seven - WBID:GB104027068370","River","Sediment",null,0]
[null,"River Seven from Hartoft Beck to Little Beck - WBID:GB104027068540","River","Sediment",null,0]
[null,"River Tamar (River Deer to Derril Water) - WBID:GB108047007660","River","Sediment",null,0]
[null,"River Torridge - WBID:GB108050014660","River","Sediment",null,0]
[null,"River Wampool (bottom) - WBID:GB102075073510","River","Sediment",null,0]
[null,"River Weaver - WBID:GB108045009110","River","Sediment",null,0]
[null,"Roding (Cripsey Brook to Loxford Water) - WBID:GB106037028180","River","Sediment",null,0]
[null,"Rom / Beam (Including Bourne Brook, from Watton's - WBID:GB106037028120","River","Sediment",null,0]
[null,"Roman River - WBID:GB105037034150","River","Sediment",null,0]
[null,"Rudhall Bk - source to conf R Wye - WBID:GB109055029730","River","Sediment",null,0]
[null,"Salary Brook - WBID:GB105037041320","River","Sediment",null,0]
[null,"Saltergill Beck Catchment (trib of Tees) - WBID:GB103025072050","River","Sediment",null,0]
[null,"Salthouse Pool - WBID:GB112074069810","River","Sediment",null,0]
[null,"Sapiston River - WBID:GB105033043070","River","Sediment",null,0]
[null,"Sarre Penn, S. Chislet and Monkton Minster Marshes - WBID:GB107040019620","River","Sediment",null,0]
[null,"Scad Beck - WBID:GB112075073590","River","Sediment",null,0]
[null,"Scurf Dike from Swinekeld to River Hull - WBID:GB104026067010","River","Sediment",null,0]
[null,"Selby Dam from Conf. Fox Dike & Carr Dike to Ouse - WBID:GB104027063620","River","Sediment",null,0]
[null,"Seymour Drain Catchment (trib of River Trent) - WBID:GB104028058340","River","Sediment",null,0]
[null,"Sheinton Bk - source to conf R Severn - WBID:GB109054049360","River","Sediment",null,0]
[null,"Shipley Burn from Eglingham Burn to Aln - WBID:GB103022076330","River","Sediment",null,0]
[null,"SHOBROOKE LAKE - WBID:GB108045009100","River","Sediment",null,0]
[null,"Showley Brook - WBID:GB112071065710","River","Sediment",null,0]
[null,"Shrawley Bk - source to conf R Severn - WBID:GB109054044190","River","Sediment",null,0]
[null,"Skelton Beck Catch (Saltburn) trib of North Sea - WBID:GB103025071970","River","Sediment",null,0]
[null,"Skerne from Carrs to Woodham Burn - WBID:GB103025072430","River","Sediment",null,0]
[null,"Skitter Bk / E Halton Bk from Ulceby Skitter to Hu - WBID:GB104029067650","River","Sediment",null,0]
[null,"Spital/Calow/Muster Brook - WBID:GB104027057640","River","Sediment",null,0]
[null,"SPRATFORD STREAM - WBID:GB108045015020","River","Sediment",null,0]
[null,"Staithes Beck from Source to Newton Beck - WBID:GB104027068770","River","Sediment",null,0]
[null,"Steeple Court Stream - WBID:GB107042016560","River","Sediment",null,0]
[null,"Stock Beck - WBID:GB112071065540","River","Sediment",null,{"$f":"SUM(E1276/E$3)*100","v":0}]
[null,"Stonton Brook - WBID:GB105031050460","River","Sediment",null,0]
[null,"Stoulton Bk - source to conf Bow Bk - WBID:GB109054039520","River","Sediment",null,0]
[null,"STRAT - WBID:GB108049013730","River","Sediment",null,0]
[null,"Sulham Brook - WBID:GB106039023280","River","Sediment",null,0]
[null,"Sundorne Bk - source to conf R Severn - WBID:GB109054049910","River","Sediment",null,0]
[null,"Tach Bk - source to conf R Avon - WBID:GB109054043740","River","Sediment",null,0]
[null,"Tala Water - WBID:GB108047008000","River","Sediment",null,0]
[null,"The Moss from Source to River Rother - WBID:GB104027057720","River","Sediment",null,0]
[null,"Tillingbourne - WBID:GB106039017840","River","Sediment",null,0]
[null,"TRIB OF SPRATFORD STREAM - WBID:GB108045014960","River","Sediment",null,0]
[null,"Tributary of Blackwater Drain - WBID:GB105034051090","River","Sediment",null,0]
[null,"Upper Darent - WBID:GB106040024221","River","Sediment",null,0]
[null,"VALENCY - WBID:GB108049007170","River","Sediment",null,0]
[null,"Ver - WBID:GB106039029920","River","Sediment",null,0]
[null,"Waithe Beck lower Catchment (to Tetney Lock) - WBID:GB104029062100","River","Sediment",null,0]
[null,"Walford Bk - source to conf R Wye - WBID:GB109055029700","River","Sediment",null,0]
[null,"Walton Brook Catchment (trib of Soar) - WBID:GB104028047110","River","Sediment",null,0]
[null,"Wansbeck from Ray Burn to Hart Burn - WBID:GB103022076990","River","Sediment",null,0]
[null,"Waveney - WBID:GB105034045770","River","Sediment",null,0]
[null,"Wbury Bk - source to conf Rea Bk - WBID:GB109054049640","River","Sediment",null,0]
[null,"Wellington Bk - source to conf R Lugg - WBID:GB109055036750","River","Sediment",null,0]
[null,"Wensum - WBID:GB105034051100","River","Sediment",null,0]
[null,"Went from Blowell Drain to the River Don - WBID:GB104027064260","River","Sediment",null,0]
[null,"West Beck Lower to River Hull - WBID:GB104026067040","River","Sediment",null,0]
[null,"West Beck Upper - WBID:GB104026067080","River","Sediment",null,0]
[null,"Western Rother - WBID:GB107041012810","River","Sediment",null,0]
[null,"Wey (Tilford to Shalford) - WBID:GB106039017820","River","Sediment",null,0]
[null,"Whissendine Brook from Source to Langham Brook - WBID:GB104028047460","River","Sediment",null,0]
[null,"Whiston Brook from Source to Church Eaton Brook - WBID:GB104028046770","River","Sediment",null,0]
[null,"Whitewater - WBID:GB106039017240","River","Sediment",null,0]
[null,"Whitsunn Bk - source to conf Piddle Bk - WBID:GB109054039530","River","Sediment",null,0]
[null,"Willersley Bk - source to conf R Wye - WBID:GB109055037070","River","Sediment",null,0]
[null,"Windermoor Main Drain - WBID:GB112073071220","River","Sediment",null,0]
[null,"Winestead Drain from Source to Humber - WBID:GB104026066570","River","Sediment",null,0]
[null,"Wingham River - WBID:GB107040019570","River","Sediment",null,0]
[null,"Woodham Burn from Rushyford Beck to the Skerne - WBID:GB103025072370","River","Sediment",null,0]
[null,"Worm Bk - source to conf R Monnow - WBID:GB109055036840","River","Sediment",null,0]
[null,"Worthenbury Brook - lower - WBID:GB111067052090","River","Sediment",null,0]
[null,"Wye (High Wycombe fire station to Thames) - WBID:GB106039023880","River","Sediment",null,0]
[null,"Yare - WBID:GB105034051270","River","Sediment",null,0]
[null,"YEO (CREEDY) - WBID:GB108045009240","River","Sediment",null,0]
[]
[null,"August 2013 National Surface Water Safeguard Zones (SWSGZID)"]
[null,"Name","Land Draining to, or within, WFD Protected Area or GES Failure","Failing or \"At Risk\" Element"]
[null,"Blackwater - Id:GB105037041160",null,null,null,0]
[null,"Blythe and Bourne to Tame - Id:GB104028042480",null,null,38069.90163,26.543414937324933]
[null,"Blythe and Bourne to Tame - Id:GB104028042572",null,null,2036.466821,1.4198824142298687]
[null,"Bollin - Id:GB31233250",null,null,null,0]
[null,"Chelmer - Id:GB105037033530",null,null,null,0]
[null,"Chew - Id:GB30943096",null,null,null,0]
[null,"Colne - Id:GB105037041330",null,null,null,0]
[null,"Cuckmere - Id:GB107041012330",null,null,null,0]
[null,"Frome and Cam - Id:GB70910509",null,null,null,0]
[null,"Gipping - Id:GB105035046280",null,null,null,0]
[null,"Great Ouse - Id:GB105033047921",null,null,null,0]
[null,"Great Ouse - Id:GB105033047923",null,null,null,0]
[null,"Great/Long Eau - Id:GB105029061660",null,null,null,0]
[null,"Holbrook - Id:GB30539601",null,null,null,0]
[null,"Land Dike Drain - Id:GB104029067520",null,null,null,0]
[null,"Leam - Id:GB30938250",null,null,1614.587941,1.1257364961771272]
[null,"Loddon - Id:GB106039023231",null,null,null,0]
[null,"Louth canal - Id:GB104029062160",null,null,null,0]
[null,"Lower Eden - Id:GB30643602",null,null,null,0]
[null,"Nene - Id:GB105032050381",null,null,null,{"$f":"SUM(E1340/E$3)*100","v":0}]
[null,"River Line - Id:GB107040013550",null,null,null,0]
[null,"Salary Brook - Id:GB30539944",null,null,null,0]
[null,"Stour - Id:GB105036041000",null,null,null,0]
[null,"Swineshaw brook to mersey - Id:GB31231791",null,null,null,0]
[null,"Tamar - Id:GB108047007860",null,null,null,0]
[null,"Tern - Id:GB109054049145",null,null,null,0]
[null,"Upper Lee - Id:GB106038027950",null,null,null,0]
[null,"Upper Wey - Id:GB106039017630",null,null,null,0]
[null,"Waveney - Id:GB105034045900",null,null,null,0]
[null,"Welland - Id:GB105031050580",null,null,null,0]
[null,"Wensum - Id:GB105034055881",null,null,null,0]
[null,"Wissey - Id:GB105033047630",null,null,null,0]
[]
[null,"Catchment sensitive farming area currently operational (CSF_NAME)"]
[null,"Name"]
[null,"Alt and Crossens",null,null,null,0]
[null,"ARUN AND WESTERN ROTHER",null,null,null,0]
[null,"BASSENTHWAITE LAKE",null,null,null,0]
[null,"BURE, ANT AND MUCKFLEET",null,null,null,0]
[null,"CAM & GRANTA",null,null,null,0]
[null,"COTSWOLDS",null,null,null,0]
[null,"Cound Brook",null,null,null,0]
[null,"DEBEN, ALDE AND ORE",null,null,null,0]
[null,"DORSET STOUR",null,null,null,0]
[null,"Downs & Harbours Clean Water Partnership",null,null,null,0]
[null,"EAST RIDING OF YORKSHIRE",null,null,null,0]
[null,"EAST ROTHER AND WALLAND MARSH",null,null,null,0]
[null,"EGFORD BOREHOLE",null,null,null,0]
[null,"GIPPING AND ORWELL",null,null,null,0]
[null,"HAMPSHIRE AVON",null,null,null,0]
[null,"Isle of Wight",null,null,null,0]
[null,"LINCOLNSHIRE COAST RIVERS - HUMBER",null,null,null,0]
[null,"LITTLE OUSE (THETFORD OUSE)",null,null,null,0]
[null,"LOWER GREAT OUSE",null,null,null,0]
[null,"LOWER LUNE",null,null,null,0]
[null,"Mimmshall Brook",null,null,null,0]
[null,"NORTH NORFOLK RIVERS",null,null,null,0]
[null,"NORTH SOMERSET MOORS",null,null,null,0]
[null,"PEAK DISTRICT DALES",null,null,null,0]
[null,"PEVENSEY",null,null,null,0]
[null,"RIVER BEULT",null,null,null,0]
[null,"RIVER BLYTH AND SURROUNDING SSSIs",null,null,null,0]
[null,"RIVER CAMEL VALLEY AND TRIBUTARIES",null,null,null,0]
[null,"River Dane",null,null,null,0]
[null,"RIVER DUDDON",null,null,null,0]
[null,"RIVER EDEN AND TRIBUTARIES",null,null,null,0]
[null,"RIVER ESK AND NORTH YORKSHIRE COASTAL STREAMS",null,null,null,0]
[null,"RIVER EXE",null,null,null,0]
[null,"RIVER EYE",null,null,null,0]
[null,"RIVER KEER",null,null,null,0]
[null,"RIVER LEADON",null,null,null,0]
[null,"RIVER LUGG",null,null,null,0]
[null,"RIVER MEASE",null,null,null,0]
[null,"RIVER NAR",null,null,null,0]
[null,"River Nene",null,null,null,0]
[null,"River Nidd",null,null,null,0]
[null,"RIVER PERRY",null,null,null,0]
[null,"RIVER PIDDLE, RIVER FROME AND FLEET LAGOON",null,null,null,0]
[null,"RIVER RIBBLE",null,null,null,0]
[null,"RIVER RODEN",null,null,null,0]
[null,"RIVER TEME",null,null,null,0]
[null,"RIVER TERN",null,null,null,0]
[null,"RIVER WENSUM",null,null,null,0]
[null,"RIVER WORFE",null,null,null,{"$f":"SUM(E1404/E$3)*100","v":0}]
[null,"RIVER WYE",null,null,null,0]
[null,"RIVER WYRE",null,null,null,0]
[null,"RIVERS AXE AND OTTER - A",null,null,null,0]
[null,"RIVERS AXE AND OTTER - B",null,null,null,0]
[null,"Rivers Chelmer and Blackwater",null,null,null,0]
[null,"RIVERS KENT & LEVEN",null,null,null,0]
[null,"RIVERS LAMBOURN AND KENNET",null,null,null,0]
[null,"RIVERS MEDWAY & EDEN",null,null,null,0]
[null,"RIVERS STOUR AND COLNE",null,null,null,0]
[null,"RIVERS STRAT & NEET",null,null,null,0]
[null,"RIVERS TEST AND ITCHEN",null,null,null,0]
[null,"RIVERS WAVER AND WAMPOOL",null,null,null,0]
[null,"SEATON, EAST LOOE AND FOWEY",null,null,null,0]
[null,"Somerset Frome",null,null,null,0]
[null,"SOMERSET LEVELS & MOORS",null,null,null,0]
[null,"SOUTH DEVON (a)",null,null,null,0]
[null,"SOUTH DEVON (b)",null,null,null,0]
[null,"TAMAR - TAVY",null,null,null,0]
[null,"Taw, Torridge & North Devon Streams",null,null,null,0]
[null,"The Leam",null,null,null,0]
[null,"THE STOUR (including Isle of Thanet)",null,null,null,0]
[null,"TWEED, ALN, COQUET AND COASTAL STREAMS",null,null,null,0]
[null,"UPPER CHERWELL",null,null,null,0]
[null,"Upper Great Ouse",null,null,null,0]
[null,"UPPER LEE & STORT",null,null,null,0]
[null,"Upper Lune & Semerwater",null,null,null,0]
[null,"UPPER RODING",null,null,null,0]
[null,"WAVENEY - A",null,null,null,0]
[null,"WAVENEY - B",null,null,null,0]
[null,"WEST CORNWALL CATCHMENTS - A",null,null,null,0]
[null,"WEST CORNWALL CATCHMENTS - B",null,null,null,0]
[null,"WEST CORNWALL CATCHMENTS - C",null,null,null,0]
[null,"WEST CORNWALL CATCHMENTS - D",null,null,null,0]
[null,"WEST CUMBRIAN CATCHMENTS",null,null,null,0]
[null,"WEST MIDLANDS MERES AND MOSSES",null,null,null,0]
[null,"YARE",null,null,null,0]
[null,"YORKSHIRE DERWENT",null,null,null,0]
[null,"YORKSHIRE OUSE, NIDD AND SWALE",null,null,null,0]